Workbook

Sheet Overzicht
G4: Contactinformatie | H4: Barry Meddeler
H5: Syntraal
G6: Email: | H6: barry.meddeler@syntraal.com
G7: Telefoonnummer | H7: 06-29192363
E14: Objecten | F14: ='Invoergegevens warmtevraag'!D9 -> 150
E15: Maximale warmtevraag | F15: ='Invoergegevens warmtevraag'!D15 -> 1002 | G15: kW
G26: Afstand tot rwzi | H26: ='Invoergegevens waterzuivering'!D9 -> 4 | I26: km
T29: ='Invoergegevens waterzuivering'!C28 -> Stikstofvracht toename per jaar | U29: ='Invoergegevens waterzuivering'!D28 -> 0.001831534214 | V29: ='Invoergegevens waterzuivering'!E28 -> mg/l
T30: ='Invoergegevens waterzuivering'!C29 -> N totaal jaargemiddeld | U30: ='Invoergegevens waterzuivering'!D29 -> 4.297476507 | V30: ='Invoergegevens waterzuivering'!E29 -> mg/l
T31: ='Invoergegevens waterzuivering'!C30 -> Toename in procent | U31: ='Invoergegevens waterzuivering'!D30 -> 0.0004263700156
C40: Debiet (DWA)0 | D40: ='Invoergegevens warmtevraag'!$D$20 -> 3195 | E40: m3/dag | L40: Debiet1 | M40: ='Invoergegevens waterzuivering'!D16 -> 22861 | N40: m3/dag
C41: T0 | D41: =MIN(Temperatuurverloop!C24:C35) -> 9 | E41: °C | G41: T1 | H41: =MIN(Temperatuurverloop!D24:D35) -> 7.658698603 | I41: °C | L41: T2 influent | M41: =MIN(Temperatuurverloop!K24:K35) -> 8.980084552
C43: ='Invoergegevens warmtevraag'!C30 -> 

Sheet Invoergegevens warmtevraag
C4: Warmtevraag object | M4: ="Warmtevraag per maand " &D9& " objecten (kWh)" -> Warmtevraag per maand 150 objecten (kWh)
C7: Object warmtevraag
C9: Aantal objecten | D9: 150 | E9: objecten
C11: kW warmtevraag object | D11: 8 | E11: kW
C12: Maximaal thermische vermogen uit het riool per object | D12: 5.3 | E12: kW
C13: Vollasturen warmtevraag per jaar | D13: 1500 | E13: vollasturen per jaar
C14: Inclusief tapwater
C15: Totaal maximale thermisch vermogen uit het riool (kW) | D15: ='Data invoer'!Q3*'Invoergegevens warmtevraag'!D9 -> 1002 | E15: kW
C16: Warmtevraag per jaar (kWh) | D16: ='Data invoer'!Q18*D9 -> 1482300 | E16: kWh
C19: Gegevens rioolwater voor de wisselaar
C20: Droog weer afvoer riool (m3/dag) | D20: 3195 | E20: m3/dag
C21: Uren DWA per dag | D21: 16 | E21: uur
C22: DWA (m3/uur) | D22: =D20/D21 -> 199.6875 | E22: m3/uur
C23: DWA (l/s) | D23: =D22*1000/3600 -> 55.46875 | E23: l/s
C24: Minimale temperatuur rioolwater in de winter (default 8 graden) | D24: 9 | E24: °C
C25: Temperatuurverloop rioolwater voor de warmtewisselaar
C28: Maximale delta temperatuur | D28: =-MAX(Temperatuurverloop!E24:E35) -> -1.341301397
C30: =IF(D28<-5,"Waarschuwing: Warmtevraag is groter dan het warmteaanbod in het riool! Geen haalbare case.", "") -> 

Sheet Invoergegevens waterzuivering
A2: 2
C3: Rioolgegevens tot de rwzi
C4: Doorsnee rioolbuis | D4: 1500 | E4: mm
C5: Vorm
C6: Materiaal
C7: Rioolbuis (gedeeltelijk) in het grondwater
C8: Riool type
C9: Afstand van de warmtewisselaar tot awzi/rwzi | D9: 4 | E9: km
C14: Gegevens waterzuivering
C15: Afvalwaterzuivering Nederland per waterschap
C16: Gemiddeld influent aanvoer per dag | D16: 22861 | E16: m3/dag
C17: Type rwzi
C18: Ontwerpcapaciteit (i.e.) | D18: 110341
C19: Belasting t.o.v. ontwerpcapaciteit | D19: 0.4851415158
C20: N totaal jaargemiddeld | D20: 4.295644973 | E20: mg/liter
C27: Resultaat
C28: Stikstofvracht toename per jaar | D28: 0.001831534214 | E28: mg/l
C29: N totaal jaargemiddeld | D29: =D28+D20 -> 4.297476507 | E29: mg/l
C30: Toename in procent | D30: =D28/D20 -> 0.0004263700156
C33: Effect jaarlijkse stikstofvracht | D33: 0 | E33: 0.05 | F33: >10%
D35: Geen effect | F35: Effect

Sheet Data invoer (hidden)
B2: 2 | N2: TRUE | O2: ruimte (kW) | P2: Tap(kW) | Q2: Maximale warmtevraag bron
B3: Objecten | C3: Gevraagd vermogen per object | D3: kW bron | E3: Vollast uren | F3: COP | H3: Tapwater | J3: Vollasturen | K3: COP | N3: Bronvermogen | O3: ='Invoergegevens warmtevraag'!D12 -> 5.3 | P3: =IF(N2,I4,0) -> 1.38 | Q3: =P3+O3 -> 6.68
B4: Woningen nieuwbouw (BENG) | C4: 6 | D4: =C4/F4*(F4-1) -> 4.285714286 | E4: 960 | F4: 3.5 | H4: 2.3 | I4: =H4/K4*(K4-1) -> 1.38 | J4: 1400 | K4: 2.5
B5: Woningen bestaande bouw (>2000) | C5: 8 | D5: =C5/F5*(F5-1) -> 5.333333333 | E5: 1500 | F5: 3 | H5: 2.3 | I5: =H5/K5*(K5-1) -> 1.38 | J5: 1400 | K5: 2.5 | O5: Ruimte vollasturen | P5: Tapwater (vollasturen) | Q5: kWh | R5: GJ | S5: Uur per maand | T5: GJ | U5: GJ*aantal
B6: Woningen bestaande bouw (1990-2000) | C6: 12 | D6: 8 | E6: 2000 | F6: 3 | H6: 2.3 | I6: 1.38 | J6: 1400 | K6: 2.5 | N6: Januari | O6: =C17 -> 237 | P6: =$J$4/12 -> 116.6666667 | Q6: =P6*$P$3+O6*$O$3 -> 1417.1 | R6: =Q6*0.0036 -> 5.10156 | S6: 744 | T6: =R6/S6 -> 0.006856935484 | U6: =T6*'Invoergegevens warmtevraag'!$D$9 -> 1.028540323
B7: Woningen (<1990) | C7: 15 | D7: 10 | E7: 2500 | F7: 3 | H7: 2.3 | I7: 1.38 | J7: 1400 | K7: 2.5 | N7: Februari | O7: =C18 -> 232.5 | P7: 116.6666667 | Q7: =P7*$P$3+O7*$O$3 -> 1393.25 | R7: =Q7*0.0036 -> 5.0157 | S7: 672 | T7: =R7/S7 -> 0.007463839286 | U7: =T7*'Invoergegevens warmtevraag'!$D$9 -> 1.119575893
B8: Zwembad (binnenzwembad) | C8: 250 | D8: 187.5 | E8: 2800 | F8: 4 | N8: Maart | O8: 187.5 | P8: 116.6666667 | Q8: 1154.75 | R8: 4.1571 | S8: 744 | T8: 0.0055875 | U8: =T8*'Invoergegevens warmtevraag'!$D$9 -> 0.838125
B9: Zwembad (buitenzwembad) | C9: 250 | D9: 187.5 | E9: 1500 | F9: 4 | N9: April | O9: 139.5 | P9: 116.6666667 | Q9: 900.35 | R9: 3.24126 | S9: 720 | T9: 0.00450175 | U9: =T9*'Invoergegevens warmtevraag'!$D$9 -> 0.6752625
B10: Overige | C10: 0 | E10: 0 | N10: Mei | O10: 78 | P10: 116.6666667 | Q10: 574.4 | R10: 2.06784 | S10: 744 | T10: 0.002779354839 | U10: =T10*'Invoergegevens warmtevraag'!$D$9 -> 0.4169032258
N11: Juni | O11: 37.5 | P11: 116.6666667 | Q11: 359.75 | R11: 1.2951 | S11: 720 | T11: 0.00179875 | U11: =T11*'Invoergegevens warmtevraag'!$D$9 -> 0.2698125
N12: Juli | O12: 1.5 | P12: 116.6666667 | Q12: 168.95 | R12: 0.60822 | S12: 744 | T12: 0.0008175 | U12: =T12*'Invoergegevens warmtevraag'!$D$9 -> 0.122625
N13: Augustus | O13: 7.5 | P13: 116.6666667 | Q13: 200.75 | R13: 0.7227 | S13: 744 | T13: 0.0009713709677 | U13: =T13*'Invoergegevens warmtevraag'!$D$9 -> 0.1457056452
N14: September | O14: 55.5 | P14: 116.6666667 | Q14: 455.15 | R14: 1.63854 | S14: 720 | T14: 0.00227575 | U14: =T14*'Invoergegevens warmtevraag'!$D$9 -> 0.3413625
N15: Oktober | O15: 115.5 | P15: 116.6666667 | Q15: 773.15 | R15: 2.78334 | S15: 744 | T15: 0.003741048387 | U15: =T15*'Invoergegevens warmtevraag'!$D$9 -> 0.5611572581
C16: Vollasturen per maand | D16: Woningen | E16: Buitenzwembad | F16: Binnenzwembad | H16: kWh | I16: Uur per maand | N16: November | O16: 180 | P16: 116.6666667 | Q16: 1115 | R16: 4.014 | S16: 720 | T16: 0.005575 | U16: =T16*'Invoergegevens warmtevraag'!$D$9 -> 0.83625
B17: Januari | C17: 237 | D17: 0.158 | E17: 0 | F17: 0.117 | H17: =Q6*'Invoergegevens warmtevraag'!D$9 -> 212565 | I17: =J17*'Invoergegevens warmtevraag'!$D$21 -> 496 | J17: 31 | N17: December | O17: 228 | P17: 116.6666667 | Q17: 1369.4 | R17: 4.92984 | S17: 744 | T17: 0.006626129032 | U17: =T17*'Invoergegevens warmtevraag'!$D$9 -> 0.9939193548
B18: Februari | C18: 232.5 | D18: 0.155 | E18: 0 | F18: 0.101 | H18: =Q7*'Invoergegevens warmtevraag'!D$9 -> 208987.5 | I18: =J18*'Invoergegevens warmtevraag'!$D$21 -> 448 | J18: 28 | O18: =SUM(O6:O17) -> 1500 | Q18: =SUM(Q6:Q17) -> 9882 | R18: 35.5752
B19: Maart | C19: 187.5 | D19: 0.125 | E19: 0 | F19: 0.087 | H19: =Q8*'Invoergegevens warmtevraag'!D$9 -> 173212.5 | I19: =J19*'Invoergegevens warmtevraag'!$D$21 -> 496 | J19: 31
B20: April | C20: 139.5 | D20: 0.093 | E20: 0.25 | F20: 0.081 | H20: =Q9*'Invoergegevens warmtevraag'!D$9 -> 135052.5 | I20: =J20*'Invoergegevens warmtevraag'!$D$21 -> 480 | J20: 30
B21: Mei | C21: 78 | D21: 0.052 | E21: 0.35 | F21: 0.072 | H21: =Q10*'Invoergegevens warmtevraag'!D$9 -> 86160 | I21: =J21*'Invoergegevens warmtevraag'!$D$21 -> 496 | J21: 31
B22: Juni | C22: 37.5 | D22: 0.025 | E22: 0.15 | F22: 0.062 | H22: =Q11*'Invoergegevens warmtevraag'!D$9 -> 53962.5 | I22: =J22*'Invoergegevens warmtevraag'!$D$21 -> 480 | J22: 30 | S22: kW | T22: Aantal * kW
B23: Juli | C23: 1.5 | D23: 0.001 | E23: 0.15 | F23: 0.062 | H23: =Q12*'Invoergegevens warmtevraag'!D$9 -> 25342.5 | I23: =J23*'Invoergegevens warmtevraag'!$D$21 -> 496 | J23: 31 | S23: =Q6/S6 -> 1.904704301 | T23: =S23*'Invoergegevens warmtevraag'!$D$9 -> 285.7056452
B24: Augustus | C24: 7.5 | D24: 0.005 | E24: 0.1 | F24: 0.062 | H24: =Q13*'Invoergegevens warmtevraag'!D$9 -> 30112.5 | I24: =J24*'Invoergegevens warmtevraag'!$D$21 -> 496 | J24: 31 | S24: 2.07328869 | T24: =S24*'Invoergegevens warmtevraag'!$D$9 -> 310.9933036
B25: September | C25: 55.5 | D25: 0.037 | E25: 0 | F25: 0.072 | H25: =Q14*'Invoergegevens warmtevraag'!D$9 -> 68272.5 | I25: =J25*'Invoergegevens warmtevraag'!$D$21 -> 480 | J25: 30 | S25: 1.552083333 | T25: =S25*'Invoergegevens warmtevraag'!$D$9 -> 232.8125
B26: Oktober | C26: 115.5 | D26: 0.077 | E26: 0 | F26: 0.082 | H26: =Q15*'Invoergegevens warmtevraag'!D$9 -> 115972.5 | I26: =J26*'Invoergegevens warmtevraag'!$D$21 -> 496 | J26: 31 | S26: 1.250486111 | T26: =S26*'Invoergegevens warmtevraag'!$D$9 -> 187.5729167
B27: November | C27: 180 | D27: 0.12 | E27: 0 | F27: 0.091 | H27: =Q16*'Invoergegevens warmtevraag'!D$9 -> 167250 | I27: =J27*'Invoergegevens warmtevraag'!$D$21 -> 480 | J27: 30 | S27: 0.7720430108 | T27: =S27*'Invoergegevens warmtevraag'!$D$9 -> 115.8064516
B28: December | C28: 228 | D28: 0.152 | E28: 0 | F28: 0.111 | H28: =Q17*'Invoergegevens warmtevraag'!D$9 -> 205410 | I28: =J28*'Invoergegevens warmtevraag'!$D$21 -> 496 | J28: 31 | S28: 0.4996527778 | T28: =S28*'Invoergegevens warmtevraag'!$D$9 -> 74.94791667
E29: =SUM(E17:E28) -> 1 | F29: =SUM(F17:F28) -> 1 | S29: 0.2270833333 | T29: =S29*'Invoergegevens warmtevraag'!$D$9 -> 34.0625
D30: link | E30: Factor | S30: 0.2698252688 | T30: =S30*'Invoergegevens warmtevraag'!$D$9 -> 40.47379032
A31: Riool | B31: Vorm | C31: Rond | D31: 1 | E31: 1 | G31: =IF(D31=1,E31,IF(D31=2,E32,E33)) -> 1 | S31: 0.6321527778 | T31: =S31*'Invoergegevens warmtevraag'!$D$9 -> 94.82291667
C32: Ovaal | E32: 0.99 | S32: 1.039180108 | T32: =S32*'Invoergegevens warmtevraag'!$D$9 -> 155.8770161
C33: Vierkant | E33: 1.02 | S33: 1.548611111 | T33: =S33*'Invoergegevens warmtevraag'!$D$9 -> 232.2916667
D34: link | S34: 1.840591398 | T34: =S34*'Invoergegevens warmtevraag'!$D$9 -> 276.0887097
B35: Materiaal | C35: Beton | D35: 1 | E35: 1 | G35: =IF(D35=1,E35,IF(D35=2,E36,E37)) -> 1
C36: PE | E36: 0.95
C37: PVC | E37: 0.95
B38: Grondwater | C38: Ja | D38: 1 | E38: 1.2 | G38: =IF(D38=1,E38,IF(D38=2,E39,E40)) -> 1.2
C39: Nee | E39: 0.95
C40: Onbekend | E40: 1
B42: Type riool | C42: Vrijverval | D42: 2 | E42: =H85 -> 0.7768 | G42: =IF(D42=1,E42,IF(D42=2,E43,E44)) -> 0.7448
C43: Persleiding | E43: =H66 -> 0.7448
F45: Factor | G45: =G38*G35*G31*G42 -> 0.89376
A54: Rwzi | B54: Type rwzi | C54: Gecompartimenteerd | D54: 2
C55: Omloopcircuit
B57: Temperatuurverloop rioolwater | C57: Default | D57: 2
C58: Eigen reeks
B61: Ontwerpcapaciteit
G64: dT | H64: 5
G65: Afstand | H65: ='Invoergegevens waterzuivering'!D9 -> 4 | I65: km
B66: Afstand | C66: Persleiding | G66: Percentage | H66: =((-0.0055*H65^3)+(0.047*H65^2)+(0.0837*H65)+0.01) -> 0.7448 | I66: =H64-H66*H64 -> 1.276
B67: 0 | C67: 0 | D67: 5 | E67: 0 | F67: =((-0.0055*B67^3)+(0.047*B67^2)+(0.0837*B67)+0.01) -> 0.01
B68: 0.2 | C68: 0.05 | D68: =$D$67-C68 -> 4.95 | E68: =1-D68/$D$67 -> 0.01 | F68: =((-0.0055*B68^3)+(0.047*B68^2)+(0.0837*B68)+0.01) -> 0.028576
B69: 0.5 | C69: 0.2 | D69: =$D$67-C69 -> 4.8 | E69: =1-D69/$D$67 -> 0.04 | F69: 0.0629125
B70: 1 | C70: 0.5 | D70: =$D$67-C70 -> 4.5 | E70: =1-D70/$D$67 -> 0.1 | F70: 0.1352
B71: 1.5 | C71: 1 | D71: =$D$67-C71 -> 4 | E71: =1-D71/$D$67 -> 0.2 | F71: 0.2227375
B72: 2 | C72: 1.5 | D72: 3.5 | E72: 0.3 | F72: 0.3214
B73: 3 | C73: 2.6 | D73: 2.4 | E73: 0.52 | F73: 0.5356
B74: 4 | C74: 3.7 | D74: 1.3 | E74: 0.74 | F74: 0.7448
B75: 5 | C75: 4.5 | D75: 0.5 | E75: 0.9 | F75: 0.916
B76: 6 | C76: 4.8 | D76: 0.2 | E76: 0.96 | F76: 1.0162
B77: 7 | C77: 5 | D77: 0 | E77: 1 | F77: 1.0124
G83: dT | H83: 5
G84: Afstand | H84: =H65 -> 4 | I84: km
B85: Afstand | C85: Vrijverval | G85: Percentage | H85: =((-0.007*H84^3)+(0.0715*H84^2)+(0.0186*H84)+0.0064) -> 0.7768 | I85: =H83-H85*H83 -> 1.116
B86: 0 | C86: 0 | D86: 5 | E86: 0 | F86: =((-0.007*B86^3)+(0.0715*B86^2)+(0.0186*B86)+0.0064) -> 0.0064
B87: 0.2 | C87: 0.03 | D87: =$D$67-C87 -> 4.97 | E87: =1-D87/$D$67 -> 0.006 | F87: =((-0.007*B87^3)+(0.0715*B87^2)+(0.0186*B87)+0.0064) -> 0.012924
B88: 0.5 | C88: 0.09 | D88: =$D$67-C88 -> 4.91 | E88: =1-D88/$D$67 -> 0.018 | F88: 0.0327
B89: 1 | C89: 0.3 | D89: =$D$67-C89 -> 4.7 | E89: =1-D89/$D$67 -> 0.06 | F89: 0.0895
B90: 1.5 | C90: 0.6 | D90: =$D$67-C90 -> 4.4 | E90: =1-D90/$D$67 -> 0.12 | F90: 0.17155
B91: 2 | C91: 1 | D91: 4 | E91: 0.2 | F91: 0.2736
B92: 2.5 | C92: 1.4 | D92: 3.6 | E92: 0.28 | F92: 0.3904
B93: 4 | C93: 3.2 | D93: 1.8 | E93: 0.64 | F93: 0.7768
B94: 5 | C94: 4.2 | D94: 0.8 | E94: 0.84 | F94: 1.0119
B95: 6 | C95: 4.8 | D95: 0.2 | E95: 0.96 | F95: 1.18
B96: 7 | C96: 5 | D96: 0 | E96: 1 | F96: 1.2391

Sheet Data BENG (hidden)
A1: Warmte inhoud gas MJ/m3 | B1: 31.65
A2: Soortelijke warmte water kW/kg/°C | B2: 4.18
A3: Tapwatervraag per persoon kWh/jaar | B3: 1098
A4: Oplaadtijd boiler in uren | B4: 3
A5: Vollasturen ruimteverwarming | B5: 1000
A6: Vollasturen koeling | B6: 600
A7: Ruimteverwarming W/m2 BVO appartement | B7: 40
A8: Maximaal koelvermogen W/m2 BVO | B8: 30
A10: Type woning | B10: Gebruikersoppervlak in m2 | C10: Aantal personen per huishouden | D10: Tapwatervraag (kWh/jaar) | E10: Minimale boilerinhoud (L) | H10: Vollasturen per dag
A11: Appartement | B11: 105 | C11: 2 | D11: 2196 | E11: 100 | G11: =D11/B28 -> 1155.789474 | H11: =G11/365 -> 3.166546503
A12: Tussenwoning | B12: 146 | C12: 3 | D12: 3294 | E12: 120 | F12: CW4 | G12: =D12/C28 -> 1432.173913 | H12: =G12/365 -> 3.923764145
A13: Twee-onder-één kap woning | B13: 180 | C13: 3.5 | D13: 3843 | E13: 150 | G13: =D13/E28 -> 1325.172414 | H13: =G13/365 -> 3.630609353
A14: Vrijstaande woning | B14: 264 | C14: 4.5 | D14: 4941 | E14: 200 | G14: =D14/F28 -> 1266.923077 | H14: =G14/365 -> 3.471022129
A16: Energiegebruik referentiewoningen BENG norm 2020
B17: Appartement | C17: Tussenwoning | D17: Hoekwoning | E17: 2-onder-éénkap | F17: Vrijstaand
A18: Max. Energiebehoefte in kWh/m2/jr | B18: 65 | C18: 55 | D18: 66.4 | E18: 66.4 | F18: 74.5
A19: Daadwerkelijke energiebehoefte in kWh/m2/jr | B19: 58 | C19: 55 | D19: 60 | E19: 64.2 | F19: 71
A20: Energiebehoefte in kWh/woning/jr | B20: 6090 | C20: 8001 | D20: 8760 | E20: 11556 | F20: 18744
A21: Koeling in kWh/woning/jr | B21: 1890 | C21: 2453 | D21: 2628 | E21: 3456 | F21: 5544
A22: Tapwater in kWh/woning/jr | B22: 2196 | C22: 3294 | D22: 3294 | E22: 3843 | F22: 4941
A23: Ruimteverwarming in kWh/jr | B23: 4200 | C23: 5548 | D23: 6132 | E23: 8100 | F23: 13200
A25: Gevraagd vermogen BENG situatie
B26: Appartement | C26: Tussenwoning | D26: Hoekwoning | E26: 2-onder-éénkap | F26: Vrijstaand
A27: Koeling in kW | B27: 3.2 | C27: 4.1 | D27: 4.4 | E27: 5.8 | F27: 9.2
A28: Tapwater in kW met buffer | B28: 1.9 | C28: 2.3 | D28: 2.3 | E28: 2.9 | F28: 3.9
A29: Ruimteverwarming in kW | B29: 4.2 | C29: 5.5 | D29: 7.6 | E29: 8.1 | F29: 13.2
A30: Totale warmtevraag in kW | B30: 6.1 | C30: 7.9 | D30: 9.9 | E30: 11 | F30: 17.1
B32: CW 3 | C32: CW 4 | D32: CW 5
A33: Vermogen tapwater bij doorstroom (douchen op 40 graden) | B33: 21.6 | C33: 27 | D33: 32.4
A34: Dit werkt vooral bij een relatief groot collectief systeem met een gelijktijdigheid van 10% tapwater

Sheet Data rwzi (hidden)
A2: 114 | B2: [gbel] Gemiddelde belasting [i_e__150] [2018] | C2: [capon] Actuele ontwerpcapaciteit [i_e__150] [2018] | D2: [effn] Stikstofjaarvracht (N-totaal) in het effluent [kg] [2018] | E2: [pcc4] Biologische verwijdering P en N in hoofdstroom-2: (m)UCT-Systeem [ja/nee] [2018] | F2: [pcb2] Biologische verwijdering P en N in hoofdstroom-1: Omloopcircuit [ja/nee] [2018] | G2: [pcc3] Biologische verwijdering P en N in hoofdstroom-2: PhoRedoxSysteem [ja/nee] [2018] | H2: Totale aangevoerde hoeveelheid afvalwater [m3/dag] [2015] | I2: N totaal (mg/l) | J2: Huidige belasting groter dan ontwerpcapaciteit (1) of kleiner (0) | K2: Huidige belasting groter dan 90% van ontwerpcapaciteit (1) of kleiner (0) | L2: m-UCT | M2: Omloop | N2: Phoredox | P2: Totale aangevoerde hoeveelheid afvalwater [m3/dag] [2015] | R2: [capon] Actuele ontwerpcapaciteit [i_e__150] [2018] | S2: [gbel] Gemiddelde belasting [i_e__150] [2018] | U2: Percentiel | V2: Gemiddelde belasting | W2: Ontwerp belasting
A3: Aa en Maas: ’s-Hertogenbosch | B3: 308652 | C3: 310080 | D3: 198245 | E3: Ja | F3: Nee | G3: Nee | H3: 53828 | I3: =+D3/(H3*365)*1000 -> 10.0902316 | J3: =+IFERROR(IF(B3>C3,1,0),"") -> 0 | K3: =+IFERROR(IF(B3/C3>0.9,1,0),"") -> 1 | L3: =+IF(E3="Ja",1,0) -> 1 | M3: =+IF(F3="Ja",1,0) -> 0 | N3: =+IF(G3="Ja",1,0) -> 0 | P3: - | R3: - | S3: - | V3: i.e. á 150 g TZV | W3: i.e. á 150 g TZV
A4: Aa en Maas: Aarle-Rixtel | B4: 381974 | C4: 299200 | D4: 145857 | E4: Ja | F4: Ja | G4: Nee | H4: 65594 | I4: =+D4/(H4*365)*1000 -> 6.092145915 | J4: =+IFERROR(IF(B4>C4,1,0),"") -> 1 | K4: =+IFERROR(IF(B4/C4>0.9,1,0),"") -> 1 | L4: =+IF(E4="Ja",1,0) -> 1 | M4: 1 | N4: 0 | P4: 197139 | R4: - | S4: - | U4: 0.1 | V4: =+PERCENTILE($S$4:$S$339,U4) -> 8307 | W4: =+PERCENTILE($R$4:$R$109,U4) -> 90395
A5: Aa en Maas: Asten | B5: 59239 | C5: 72533 | D5: 16493 | E5: Nee | F5: Ja | G5: Ja | H5: 14591 | I5: 3.096861173 | J5: 0 | K5: 0 | L5: 0 | M5: 1 | N5: 1 | P5: 171093 | R5: - | S5: 1060482 | U5: 0.25 | V5: =+PERCENTILE($S$4:$S$109,U5) -> 94919 | W5: =+PERCENTILE($R$4:$R$109,U5) -> 111130.75
A6: Aa en Maas: Dinther | B6: 267954 | C6: 271093 | D6: 91920 | E6: Nee | F6: Ja | G6: Ja | H6: 47872 | I6: 5.260603619 | J6: 0 | K6: 1 | L6: 0 | M6: 1 | N6: 1 | P6: 153476 | R6: - | S6: 989355 | U6: 0.5 | V6: =+PERCENTILE($S$4:$S$109,U6) -> 129619 | W6: 150250
A7: Aa en Maas: Land van Cuijk | B7: 167494 | C7: 165220 | D7: 81442 | E7: Ja | F7: Nee | G7: Nee | H7: 32914 | I7: 6.779144653 | J7: 1 | K7: 1 | L7: 1 | M7: 0 | N7: 0 | P7: 119407 | R7: - | S7: 731498 | U7: 0.75 | V7: =+PERCENTILE($S$4:$S$109,U7) -> 255100 | W7: 280184
A8: Aa en Maas: Oijen | B8: 257558 | C8: 360000 | D8: 75325 | E8: Nee | F8: Ja | G8: Nee | H8: 54793 | I8: 3.766354516 | J8: 0 | K8: 0 | L8: 0 | M8: 1 | N8: 0 | P8: 105468 | R8: 1185693 | S8: 475209 | U8: 0.9 | V8: =+PERCENTILE($S$4:$S$109,U8) -> 353771.6 | W8: 362403
A9: Aa en Maas: Vinkel | B9: 56437 | C9: 56213 | D9: 20036 | E9: Nee | F9: Ja | G9: Ja | H9: 12804 | I9: 4.287187651 | J9: 1 | K9: 1 | L9: 0 | M9: 1 | N9: 1 | P9: 87946 | R9: 919500 | S9: 432486
A10: Amstel, Gooi en Vecht: Amstelveen | B10: 119597 | C10: 113500 | D10: 132775 | E10: Ja | F10: Ja | G10: Nee | H10: 28074 | I10: 12.95743832 | J10: 1 | K10: 1 | L10: 1 | M10: 1 | N10: 0 | P10: 82229 | R10: 680000 | S10: 406130 | V10: Aantal systemen | W10: aantal >100% van ontwerp capaciteit | X10: aantal <100% van ontwerp capaciteit
A11: Amstel, Gooi en Vecht: Amsterdam West | B11: 989355 | C11: 919500 | D11: 461439 | E11: Ja | F11: Ja | G11: Nee | H11: 171093 | I11: 7.389059975 | J11: 1 | K11: 1 | L11: 1 | M11: 1 | N11: 0 | P11: 75680 | R11: 564000 | S11: 382411 | T11: (m)UCT | U11: =+T11&" ("&V11&" st)" -> (m)UCT (61 st) | V11: =+COUNTIF(E3:E339,"Ja") -> 61 | W11: =+SUMPRODUCT($K$3:$K$339,L3:L339) -> 28 | X11: =+V11-W11 -> 33
A12: Amstel, Gooi en Vecht: Blaricum | B12: 39276 | C12: 30000 | D12: 11644 | E12: Nee | F12: Ja | G12: Nee | H12: 8122 | I12: 3.927772699 | J12: 1 | K12: 1 | L12: 0 | M12: 1 | N12: 0 | P12: 74783 | R12: 485970 | S12: 381974 | T12: Phoredox | U12: =+T12&" ("&V12&" st)" -> Phoredox (43 st) | V12: =+COUNTIF(G3:G339,"Ja") -> 43 | W12: =+SUMPRODUCT($K$3:$K$339,N3:N339) -> 16 | X12: =+V12-W12 -> 27
A13: Amstel, Gooi en Vecht: Hilversum | B13: 66470 | C13: 82500 | D13: 25297 | E13: Ja | F13: Ja | G13: Nee | H13: 11554 | I13: 5.998515606 | J13: 0 | K13: 0 | L13: 1 | M13: 1 | N13: 0 | P13: 71586 | R13: 480000 | S13: 373567 | T13: Omloopcircuit | U13: =+T13&" ("&Y13&" st)" -> Omloopcircuit (250 st) | W13: =+SUMPRODUCT($J$3:$J$339,M3:M339) -> 53 | X13: =+Y13-W13 -> 197 | Y13: =+COUNTIF(F3:F339,"Ja") -> 250
A14: Amstel, Gooi en Vecht: Horstermeer | B14: 126214 | C14: 150000 | D14: 30206 | E14: Ja | F14: Nee | G14: Nee | H14: 25691 | I14: 3.221212268 | J14: 0 | K14: 0 | L14: 1 | M14: 0 | N14: 0 | P14: 69658 | R14: 454000 | S14: 367015 | U14: =+W10 -> aantal >100% van ontwerp capaciteit | V14: =+W13 -> 53
A15: Amstel, Gooi en Vecht: Huizen | B15: 56706 | C15: 58500 | D15: 20599 | E15: Nee | F15: Nee | G15: Ja | H15: 8946 | I15: 6.308474898 | J15: 0 | K15: 1 | L15: 0 | M15: 0 | N15: 1 | P15: 68349 | R15: 400000 | S15: 359624 | U15: =+X10 -> aantal <100% van ontwerp capaciteit | V15: =+Y13-V14 -> 197
A16: Amstel, Gooi en Vecht: Loenen | B16: 10687 | C16: 12000 | D16: 5928 | E16: Nee | F16: Ja | G16: Nee | H16: 2313 | I16: 7.021658405 | J16: 0 | K16: 0 | L16: 0 | M16: 1 | N16: 0 | P16: 65594 | R16: 395000 | S16: 344993
A17: Amstel, Gooi en Vecht: Maarssen | B17: 19889 | C17: 22500 | D17: 9356 | E17: Nee | F17: Nee | G17: Ja | H17: 3276 | I17: 7.824443441 | J17: 0 | K17: 0 | L17: 0 | M17: 0 | N17: 1 | P17: 64528 | R17: 389197 | S17: 329588
A18: Amstel, Gooi en Vecht: Ronde Venen | B18: 48889 | C18: 63500 | D18: 19021 | E18: Ja | F18: Ja | G18: Nee | H18: 11203 | I18: 4.651640522 | J18: 0 | K18: 0 | L18: 1 | M18: 1 | N18: 0 | P18: 64365 | R18: 362670 | S18: 325184
A19: Amstel, Gooi en Vecht: Uithoorn | B19: 44494 | C19: 63500 | D19: 30812 | E19: Nee | F19: Nee | G19: Nee | H19: 10065 | I19: 8.387127507 | J19: 0 | K19: 0 | L19: 0 | M19: 0 | N19: 0 | P19: 64310 | R19: 360000 | S19: 319586
A20: Amstel, Gooi en Vecht: Weesp | B20: 37651 | C20: 54000 | D20: 96170 | E20: Nee | F20: Nee | G20: Nee | H20: 9150 | I20: 28.79556853 | J20: 0 | K20: 0 | L20: 0 | M20: 0 | N20: 0 | P20: 64046 | R20: 360000 | S20: 311102
A21: Amstel, Gooi en Vecht: Westpoort | B21: 367015 | C21: 454000 | D21: 168473 | E21: Ja | F21: Ja | G21: Nee | H21: 64046 | I21: 7.206849187 | J21: 0 | K21: 0 | L21: 1 | M21: 1 | N21: 0 | P21: 62363 | R21: 340146 | S21: 308652
A22: Brabantse Delta: Baarle-Nassau | B22: 21318 | C22: 16770 | D22: 7550 | E22: Nee | F22: Ja | G22: Nee | H22: 2582 | I22: 8.011205076 | J22: 1 | K22: 1 | L22: 0 | M22: 1 | N22: 0 | P22: 57530 | R22: 340000 | S22: 289384 | V22: https://waves.databank.nl/jive
A23: Brabantse Delta: Bath | B23: 432486 | C23: 485970 | D23: 323388 | E23: Nee | F23: Nee | G23: Nee | H23: 105468 | I23: 8.400600377 | J23: 0 | K23: 0 | L23: 0 | M23: 0 | N23: 0 | P23: 54793 | R23: 337000 | S23: 284748
A24: Brabantse Delta: Chaam | B24: 7972 | C24: 7660 | D24: 2498 | E24: Nee | F24: Ja | G24: Nee | H24: 1405 | I24: 4.871057378 | J24: 1 | K24: 1 | L24: 0 | M24: 1 | N24: 0 | P24: 54503 | R24: 330000 | S24: 280736
A25: Brabantse Delta: Dinteloord | B25: 7752 | C25: 7660 | D25: 4643 | E25: Nee | F25: Ja | G25: Nee | H25: 2514 | I25: 5.059883829 | J25: 1 | K25: 1 | L25: 0 | M25: 1 | N25: 0 | P25: 53828 | R25: 318288 | S25: 277359
A26: Brabantse Delta: Dongemond | B26: 157822 | C26: 145670 | D26: 136993 | E26: Nee | F26: Nee | G26: Nee | H26: 29258 | I26: 12.82805686 | J26: 1 | K26: 1 | L26: 0 | M26: 0 | N26: 0 | P26: 51924 | R26: 317000 | S26: 273294
A27: Brabantse Delta: Halsteren | B27: 17792 | C27: 12690 | D27: 7809 | E27: Nee | F27: Ja | G27: Nee | H27: 2971 | I27: 7.201117653 | J27: 1 | K27: 1 | L27: 0 | M27: 1 | N27: 0 | P27: 50774 | R27: 310080 | S27: 268532
A28: Brabantse Delta: Kaatsheuvel | B28: 62598 | C28: 57300 | D28: 13934 | E28: Nee | F28: Ja | G28: Nee | H28: 11442 | I28: 3.33642217 | J28: 1 | K28: 1 | L28: 0 | M28: 1 | N28: 0 | P28: 49790 | R28: 307813 | S28: 267954
A29: Brabantse Delta: Lage Zwaluwe | B29: 10464 | C29: 7200 | D29: 4168 | E29: Nee | F29: Ja | G29: Nee | H29: 2080 | I29: 5.489989463 | J29: 1 | K29: 1 | L29: 0 | M29: 1 | N29: 0 | P29: 49650 | R29: 303700 | S29: 267726
A30: Brabantse Delta: Nieuwveer | B30: 359624 | C30: 362670 | D30: 279239 | E30: Nee | F30: Nee | G30: Nee | H30: 75680 | I30: 10.10885777 | J30: 0 | K30: 1 | L30: 0 | M30: 0 | N30: 0 | P30: 49322 | R30: 299200 | S30: 257558
A31: Brabantse Delta: Nieuw-Vossemeer | B31: 2463 | C31: 2880 | D31: 1348 | E31: Nee | F31: Ja | G31: Nee | H31: 710 | I31: 5.201620683 | J31: 0 | K31: 0 | L31: 0 | M31: 1 | N31: 0 | P31: 47872 | R31: 292400 | S31: 255100
A32: Brabantse Delta: Ossendrecht | B32: 10173 | C32: 8130 | D32: 3168 | E32: Nee | F32: Nee | G32: Ja | H32: 1490 | I32: 5.825135607 | J32: 1 | K32: 1 | L32: 0 | M32: 0 | N32: 1 | P32: 45700 | R32: 289136 | S32: 249240
A33: Brabantse Delta: Putte | B33: 6180 | C33: 5070 | D33: 2525 | E33: Nee | F33: Nee | G33: Ja | H33: 957 | I33: 7.228639727 | J33: 1 | K33: 1 | L33: 0 | M33: 0 | N33: 1 | P33: 43773 | R33: 281112 | S33: 244168
A34: Brabantse Delta: Riel | B34: 10943 | C34: 14050 | D34: 3109 | E34: Nee | F34: Ja | G34: Ja | H34: 1741 | I34: 4.89248031 | J34: 0 | K34: 0 | L34: 0 | M34: 1 | N34: 1 | P34: 42334 | R34: 277400 | S34: 241949
A35: Brabantse Delta: Rijen | B35: 86450 | C35: 74350 | D35: 29606 | E35: Nee | F35: Ja | G35: Nee | H35: 13879 | I35: 5.844248776 | J35: 1 | K35: 1 | L35: 0 | M35: 1 | N35: 0 | P35: 41999 | R35: 272000 | S35: 241704
A36: Brabantse Delta: Waalwijk | B36: 64560 | C36: 77970 | D36: 38510 | E36: Nee | F36: Nee | G36: Nee | H36: 13502 | I36: 7.814164517 | J36: 0 | K36: 0 | L36: 0 | M36: 0 | N36: 0 | P36: 41725 | R36: 271093 | S36: 237412
A37: Brabantse Delta: Waspik | B37: 13592 | C37: 17340 | D37: 3157 | E37: Nee | F37: Ja | G37: Nee | H37: 2354 | I37: 3.674305467 | J37: 0 | K37: 0 | L37: 0 | M37: 1 | N37: 0 | P37: 41663 | R37: 257956 | S37: 234699
A38: Brabantse Delta: Willemstad | B38: 6000 | C38: 5520 | D38: 2972 | E38: Nee | F38: Ja | G38: Nee | H38: 1231 | I38: 6.614513203 | J38: 1 | K38: 1 | L38: 0 | M38: 1 | N38: 0 | P38: 41582 | R38: 238453 | S38: 213365
A39: De Dommel: Biest-Houtakker | B39: 59677 | C39: 66650 | D39: 37169 | E39: Ja | F39: Ja | G39: Nee | H39: 12485 | I39: 8.156417838 | J39: 0 | K39: 0 | L39: 1 | M39: 1 | N39: 0 | P39: 39913 | R39: 235200 | S39: 210149
A40: De Dommel: Boxtel | B40: 77142 | C40: 108800 | D40: 50266 | E40: Ja | F40: Ja | G40: Nee | H40: 15513 | I40: 8.877397569 | J40: 0 | K40: 0 | L40: 1 | M40: 1 | N40: 0 | P40: 35656 | R40: 228000 | S40: 209391
A41: De Dommel: Eindhoven | B41: 731498 | C41: 680000 | D41: 411296 | E41: Ja | F41: Ja | G41: Nee | H41: 153476 | I41: 7.342114442 | J41: 1 | K41: 1 | L41: 1 | M41: 1 | N41: 0 | P41: 35204 | R41: 227999 | S41: 191920
A42: De Dommel: Haaren | B42: 44007 | C42: 60000 | D42: 24117 | E42: Nee | F42: Ja | G42: Ja | H42: 10767 | I42: 6.136711489 | J42: 0 | K42: 0 | L42: 0 | M42: 1 | N42: 1 | P42: 34462 | R42: 227000 | S42: 187892
A43: De Dommel: Hapert | B43: 51103 | C43: 64373 | D43: 21584 | E43: Nee | F43: Ja | G43: Ja | H43: 12085 | I43: 4.893193759 | J43: 0 | K43: 0 | L43: 0 | M43: 1 | N43: 1 | P43: 34150 | R43: 226667 | S43: 182484
A44: De Dommel: Mierlo | B44: - | C44: - | D44: - | E44: Nee | F44: Nee | G44: Nee | J44: 0 | L44: 0 | M44: 0 | N44: 0 | P44: 32914 | R44: 210933 | S44: 180027
A45: De Dommel: Sint-Oedenrode | B45: 94919 | C45: 89760 | D45: 30457 | E45: Nee | F45: Ja | G45: Ja | H45: 15146 | I45: 5.509298535 | J45: 1 | K45: 1 | L45: 0 | M45: 1 | N45: 1 | P45: 32503 | R45: 209000 | S45: 178340
A46: De Dommel: Soerendonk | B46: 32132 | C46: 38170 | D46: 10574 | E46: Nee | F46: Ja | G46: Ja | H46: 7786 | I46: 3.720763295 | J46: 0 | K46: 0 | L46: 0 | M46: 1 | N46: 1 | P46: 31789 | R46: 206811 | S46: 171261
A47: De Dommel: Tilburg | B47: 382411 | C47: 340000 | D47: 184568 | E47: Nee | F47: Nee | G47: Ja | H47: 64528 | I47: 7.836377285 | J47: 1 | K47: 1 | L47: 0 | M47: 0 | N47: 1 | P47: 30649 | R47: 206720 | S47: 167494
A48: De Stichtse Rijnlanden: Breukelen | B48: 25444 | C48: 31200 | D48: 11791 | E48: Ja | F48: Ja | G48: Nee | H48: 5205 | I48: 6.206361112 | J48: 0 | K48: 0 | L48: 1 | M48: 1 | N48: 0 | P48: 30406 | R48: 206000 | S48: 166124
A49: De Stichtse Rijnlanden: Bunnik | B49: 33892 | C49: 38400 | D49: 10798 | E49: Nee | F49: Ja | G49: Nee | H49: 5760 | I49: 5.136035008 | J49: 0 | K49: 0 | L49: 0 | M49: 1 | N49: 0 | P49: 30307 | R49: 203100 | S49: 159484
A50: De Stichtse Rijnlanden: De Bilt | B50: 67425 | C50: 73920 | D50: 28424 | E50: Ja | F50: Ja | G50: Nee | H50: 13186 | I50: 5.905807114 | J50: 0 | K50: 1 | L50: 1 | M50: 1 | N50: 0 | P50: 29296 | R50: 203000 | S50: 157822
A51: De Stichtse Rijnlanden: De Meern | B51: 40144 | C51: 48000 | D51: 23847 | E51: Nee | F51: Ja | G51: Nee | H51: 8888 | I51: 7.350837824 | J51: 0 | K51: 0 | L51: 0 | M51: 1 | N51: 0 | P51: 29258 | R51: 181000 | S51: 153093
A52: De Stichtse Rijnlanden: Driebergen | B52: 59646 | C52: 44400 | D52: 13392 | E52: Nee | F52: Ja | G52: Ja | H52: 8197 | I52: 4.47607795 | J52: 1 | K52: 1 | L52: 0 | M52: 1 | N52: 1 | P52: 28861 | R52: 178700 | S52: 146193
A53: De Stichtse Rijnlanden: Houten | B53: 59056 | C53: 72000 | D53: 14410 | E53: Nee | F53: Ja | G53: Ja | H53: 12134 | I53: 3.253622223 | J53: 0 | K53: 0 | L53: 0 | M53: 1 | N53: 1 | P53: 28388 | R53: 172267 | S53: 142238
A54: De Stichtse Rijnlanden: Leidsche Rijn | B54: 81914 | C54: 81600 | D54: 28550 | E54: Ja | F54: Ja | G54: Nee | H54: 10388 | I54: 7.529763004 | J54: 1 | K54: 1 | L54: 1 | M54: 1 | N54: 0 | P54: 28074 | R54: 168821 | S54: 138923
A55: De Stichtse Rijnlanden: Lopik | B55: 25058 | C55: 33333 | D55: 8471 | E55: Ja | F55: Ja | G55: Nee | H55: 4622 | I55: 5.021250363 | J55: 0 | K55: 0 | L55: 1 | M55: 1 | N55: 0 | P55: 26508 | R55: 165220 | S55: 132199
A56: De Stichtse Rijnlanden: Maarssenbroek | B56: 55348 | C56: 54000 | D56: 10334 | E56: Nee | F56: Ja | G56: Nee | H56: 6279 | I56: 4.509050608 | J56: 1 | K56: 1 | L56: 0 | M56: 1 | N56: 0 | P56: 26158 | R56: 165013 | S56: 131021
A57: De Stichtse Rijnlanden: Montfoort | B57: 21111 | C57: 18529 | D57: 9656 | E57: Nee | F57: Ja | G57: Nee | H57: 3785 | I57: 6.98937768 | J57: 1 | K57: 1 | L57: 0 | M57: 1 | N57: 0 | P57: 25899 | R57: 160500 | S57: 129619
A58: De Stichtse Rijnlanden: Nieuwegein | B58: 131021 | C58: 144000 | D58: 90602 | E58: Ja | F58: Ja | G58: Nee | H58: 26508 | I58: 9.364141298 | J58: 0 | K58: 1 | L58: 1 | M58: 1 | N58: 0 | P58: 25709 | R58: 150500 | S58: 127395
A59: De Stichtse Rijnlanden: Oudewater | B59: 22677 | C59: 24400 | D59: 5873 | E59: Ja | F59: Ja | G59: Nee | H59: 3014 | I59: 5.338557053 | J59: 0 | K59: 1 | L59: 1 | M59: 1 | N59: 0 | P59: 25691 | R59: 150000 | S59: 126639
A60: De Stichtse Rijnlanden: Rhenen | B60: 48930 | C60: 46800 | D60: 16770 | E60: Ja | F60: Ja | G60: Nee | H60: 8053 | I60: 5.705352723 | J60: 1 | K60: 1 | L60: 1 | M60: 1 | N60: 0 | P60: 25585 | R60: 147787 | S60: 126214
A61: De Stichtse Rijnlanden: Utrecht | B61: 406130 | C61: 480000 | D61: 181478 | E61: Nee | F61: Ja | G61: Nee | H61: 64365 | I61: 7.724695098 | J61: 0 | K61: 0 | L61: 0 | M61: 1 | N61: 0 | P61: 24427 | R61: 145670 | S61: 125337
A62: De Stichtse Rijnlanden: Wijk bij Duurstede | B62: 31652 | C62: 31800 | D62: 14174 | E62: Ja | F62: Ja | G62: Nee | H62: 6237 | I62: 6.226210792 | J62: 0 | K62: 1 | L62: 1 | M62: 1 | N62: 0 | P62: 24332 | R62: 145100 | S62: 124288
A63: De Stichtse Rijnlanden: Woerden | B63: 67303 | C63: 75960 | D63: 45300 | E63: Ja | F63: Ja | G63: Nee | H63: 15971 | I63: 7.770934133 | J63: 0 | K63: 0 | L63: 1 | M63: 1 | N63: 0 | P63: 24047 | R63: 145000 | S63: 122028
A64: De Stichtse Rijnlanden: Zeist | B64: 82566 | C64: 90000 | D64: 43663 | E64: Ja | F64: Nee | G64: Nee | H64: 13177 | I64: 9.078292292 | J64: 0 | K64: 1 | L64: 1 | M64: 0 | N64: 0 | P64: 23728 | R64: 144900 | S64: 121447
A65: Delfland: de Groote Lucht | B65: 237412 | C65: 257956 | D65: 248488 | E65: Ja | F65: Nee | G65: Nee | H65: 74783 | I65: 9.103526752 | J65: 0 | K65: 1 | L65: 1 | M65: 0 | N65: 0 | P65: 23566 | R65: 144000 | S65: 119816
A66: Delfland: Harnaschpolder | B66: 1060482 | C66: 1185693 | D66: 552560 | E66: Nee | F66: Ja | G66: Nee | H66: 197139 | I66: 7.679165531 | J66: 0 | K66: 0 | L66: 0 | M66: 1 | N66: 0 | P66: 23285 | R66: 140000 | S66: 119597
A67: Delfland: Houtrust | B67: 344993 | C67: 389197 | D67: 278813 | E67: Nee | F67: Nee | G67: Ja | H67: 64310 | I67: 11.87795417 | J67: 0 | K67: 0 | L67: 0 | M67: 0 | N67: 1 | P67: 22861 | R67: 137510 | S67: 119209
A68: Delfland: Nieuwe Waterweg | B68: 101710 | C68: 99562 | D68: 72099 | E68: Nee | F68: Ja | G68: Nee | H68: 24427 | I68: =+D68/(H68*365)*1000 -> 8.086605267 | J68: =+IFERROR(IF(B68>C68,1,0),"") -> 1 | K68: =+IFERROR(IF(B68/C68>0.9,1,0),"") -> 1 | L68: =+IF(E68="Ja",1,0) -> 0 | M68: 1 | N68: 0 | P68: 22457 | R68: 137451 | S68: 118258
A69: Drents Overijsselse Delta: Dalfsen | B69: 32514 | C69: 31733 | D69: 10747 | E69: Nee | F69: Ja | G69: Nee | H69: 7432 | I69: 3.961764749 | J69: 1 | K69: 1 | L69: 0 | M69: 1 | N69: 0 | P69: 22102 | R69: 136000 | S69: 115662
A70: Drents Overijsselse Delta: Deventer | B70: 121447 | C70: 165013 | D70: 68899 | E70: Nee | F70: Ja | G70: Nee | H70: 22457 | I70: 8.405592179 | J70: 0 | K70: 0 | L70: 0 | M70: 1 | N70: 0 | P70: 21647 | R70: 131500 | S70: 114334
A71: Drents Overijsselse Delta: Genemuiden | B71: 31236 | C71: 40709 | D71: 13825 | E71: Nee | F71: Ja | G71: Nee | H71: 7387 | I71: 5.127482378 | J71: 0 | K71: 0 | L71: 0 | M71: 1 | N71: 0 | P71: 21505 | R71: 129700 | S71: 113894
A72: Drents Overijsselse Delta: Heino | B72: 7974 | C72: 10203 | D72: 2460 | E72: Nee | F72: Ja | G72: Ja | H72: 1762 | I72: 3.825043148 | J72: 0 | K72: 0 | L72: 0 | M72: 1 | N72: 1 | P72: 21211 | R72: 129000 | S72: 110463
A73: Drents Overijsselse Delta: Hessenpoort | B73: 14639 | C73: 25613 | D73: 5734 | E73: Nee | F73: Ja | G73: Nee | H73: 3599 | I73: 4.36498723 | J73: 0 | K73: 0 | L73: 0 | M73: 1 | N73: 0 | P73: 21168 | R73: 127000 | S73: 108947
A74: Drents Overijsselse Delta: Kampen | B74: 70119 | C74: 81500 | D74: 31634 | E74: Nee | F74: Ja | G74: Nee | H74: 15171 | I74: 5.712773921 | J74: 0 | K74: 0 | L74: 0 | M74: 1 | N74: 0 | P74: 20911 | R74: 122000 | S74: 107069
A75: Drents Overijsselse Delta: Olst-Wijhe | B75: 27339 | C75: 31000 | D75: 7841 | E75: Nee | F75: Ja | G75: Nee | H75: 5640 | I75: 3.808899252 | J75: 0 | K75: 0 | L75: 0 | M75: 1 | N75: 0 | P75: 20664 | R75: 121408 | S75: 102464
A76: Drents Overijsselse Delta: Raalte | B76: 56993 | C76: 73685 | D76: 11813 | E76: Nee | F76: Ja | G76: Nee | H76: 10376 | I76: 3.119158015 | J76: 0 | K76: 0 | L76: 0 | M76: 1 | N76: 0 | P76: 20567 | R76: 121000 | S76: 102243
A77: Drents Overijsselse Delta: Zwolle | B77: 171261 | C77: 172267 | D77: 114554 | E77: Ja | F77: Ja | G77: Nee | H77: 30406 | I77: 10.32186329 | J77: 0 | K77: 1 | L77: 1 | M77: 1 | N77: 0 | P77: 19945 | R77: 120496 | S77: 101710
A78: Drents Overijsselse Delta: Beilen | B78: 60662 | C78: 74528 | D78: 20730 | E78: Nee | F78: Ja | G78: Nee | H78: 10832 | I78: 5.243216446 | J78: 0 | K78: 0 | L78: 0 | M78: 1 | N78: 0 | P78: 19739 | R78: 120496 | S78: 101412
A79: Drents Overijsselse Delta: Dieverbrug | B79: 25921 | C79: 38987 | D79: 12277 | E79: Nee | F79: Ja | G79: Nee | H79: 5616 | I79: 5.989247941 | J79: 0 | K79: 0 | L79: 0 | M79: 1 | N79: 0 | P79: 19563 | R79: 120000 | S79: 99207
A80: Drents Overijsselse Delta: Echten | B80: 138923 | C80: 168821 | D80: 68019 | E80: Nee | F80: Ja | G80: Nee | H80: 31789 | I80: 5.862198391 | J80: 0 | K80: 0 | L80: 0 | M80: 1 | N80: 0 | P80: 19299 | R80: 120000 | S80: 99019
A81: Drents Overijsselse Delta: Meppel | B81: 98998 | C81: 129000 | D81: 24790 | E81: Nee | F81: Ja | G81: Nee | H81: 17581 | I81: 3.863136808 | J81: 0 | K81: 0 | L81: 0 | M81: 1 | N81: 0 | P81: 19197 | R81: 116960 | S81: 98998
A82: Drents Overijsselse Delta: Smilde | B82: 11658 | C82: 12294 | D82: 3817 | E82: Nee | F82: Ja | G82: Nee | H82: 2949 | I82: 3.546128941 | J82: 0 | K82: 1 | L82: 0 | M82: 1 | N82: 0 | P82: 19084 | R82: 116400 | S82: 97208
A83: Drents Overijsselse Delta: Steenwijk | B83: 59477 | C83: 67093 | D83: 15096 | E83: Nee | F83: Ja | G83: Nee | H83: 9613 | I83: 4.302393021 | J83: 0 | K83: 0 | L83: 0 | M83: 1 | N83: 0 | P83: 18697 | R83: 113500 | S83: 94919
A84: Drents Overijsselse Delta: Vollenhove | B84: 7224 | C84: 14507 | D84: 2474 | E84: Nee | F84: Ja | G84: Nee | H84: 1340 | I84: 5.058270292 | J84: 0 | K84: 0 | L84: 0 | M84: 1 | N84: 0 | P84: 18060 | R84: 110341 | S84: 90730
A85: Fryslân: Akkrum | B85: 7534 | C85: 16320 | D85: 2851 | E85: Nee | F85: Nee | G85: Nee | H85: 1929 | I85: 4.049227011 | J85: 0 | K85: 0 | L85: 0 | M85: 0 | N85: 0 | P85: 17581 | R85: 108800 | S85: 88290
A86: Fryslân: Ameland | B86: 12737 | C86: 25387 | D86: 3819 | E86: Nee | F86: Ja | G86: Nee | H86: 1957 | I86: 5.346455646 | J86: 0 | K86: 0 | L86: 0 | M86: 1 | N86: 0 | P86: 17528 | R86: 108000 | S86: 87767
A87: Fryslân: Birdaard | B87: 24720 | C87: 29920 | D87: 14025 | E87: Nee | F87: Ja | G87: Nee | H87: 7189 | I87: 5.344923847 | J87: 0 | K87: 0 | L87: 0 | M87: 1 | N87: 0 | P87: 16811 | R87: 108000 | S87: 87571
A88: Fryslân: Bolsward | B88: 49561 | C88: 40800 | D88: 23693 | E88: Nee | F88: Ja | G88: Nee | H88: 9000 | I88: 7.212480974 | J88: 1 | K88: 1 | L88: 0 | M88: 1 | N88: 0 | P88: 16605 | R88: 102000 | S88: 87237
A89: Fryslân: Burgum | B89: 32884 | C89: 66187 | D89: 11479 | E89: Nee | F89: Ja | G89: Nee | H89: 11712 | I89: 2.685221573 | J89: 0 | K89: 0 | L89: 0 | M89: 1 | N89: 0 | P89: 16212 | R89: 102000 | S89: 86597
A90: Fryslân: Damwoude | B90: 21666 | C90: 41707 | D90: 11589 | E90: Nee | F90: Ja | G90: Nee | H90: 5954 | I90: 5.332664584 | J90: 0 | K90: 0 | L90: 0 | M90: 1 | N90: 0 | P90: 16177 | R90: 102000 | S90: 86450
A91: Fryslân: Dokkum | B91: 30703 | C91: 45333 | D91: 17384 | E91: Nee | F91: Nee | G91: Nee | H91: 12423 | I91: 3.833808038 | J91: 0 | K91: 0 | L91: 0 | M91: 0 | N91: 0 | P91: 16172 | R91: 101248 | S91: 82566
A92: Fryslân: Drachten | B92: 97208 | C92: 90667 | D92: 49397 | E92: Nee | F92: Nee | G92: Nee | H92: 25899 | I92: 5.225462241 | J92: 1 | K92: 1 | L92: 0 | M92: 0 | N92: 0 | P92: 16125 | R92: 100000 | S92: 81914
A93: Fryslân: Franeker | B93: 52338 | C93: 54400 | D93: 40337 | E93: Nee | F93: Ja | G93: Nee | H93: 11968 | I93: 9.23398469 | J93: 0 | K93: 1 | L93: 0 | M93: 1 | N93: 0 | P93: 16120 | R93: 99562 | S93: 79967
A94: Fryslân: Gorredijk | B94: 25679 | C94: 37173 | D94: 10457 | E94: Nee | F94: Ja | G94: Nee | H94: 7997 | I94: 3.582507824 | J94: 0 | K94: 0 | L94: 0 | M94: 1 | N94: 0 | P94: 15971 | R94: 98000 | S94: 79377
A95: Fryslân: Grou | B95: 28138 | C95: 22667 | D95: 5280 | E95: Nee | F95: Nee | G95: Nee | H95: 5495 | I95: 2.632530196 | J95: 1 | K95: 1 | L95: 0 | M95: 0 | N95: 0 | P95: 15924 | R95: 95200 | S95: 79332
A96: Fryslân: Harlingen | B96: 36458 | C96: 116960 | D96: 9248 | E96: Nee | F96: Ja | G96: Nee | H96: 10475 | I96: 2.418805375 | J96: 0 | K96: 0 | L96: 0 | M96: 1 | N96: 0 | P96: 15887 | R96: 95000 | S96: 79261
A97: Fryslân: Heerenveen | B97: 126639 | C97: 136000 | D97: 48925 | E97: Nee | F97: Ja | G97: Nee | H97: 21505 | I97: 6.233020037 | J97: 0 | K97: 1 | L97: 0 | M97: 1 | N97: 0 | P97: 15733 | R97: 90667 | S97: 77142
A98: Fryslân: Joure | B98: 38351 | C98: 62560 | D98: 8077 | E98: Nee | F98: Nee | G98: Nee | H98: 7317 | I98: 3.024295083 | J98: 0 | K98: 0 | L98: 0 | M98: 0 | N98: 0 | P98: 15513 | R98: 90395 | S98: 74443
A99: Fryslân: Kootstertille | B99: 32879 | C99: 44427 | D99: 11234 | E99: Nee | F99: Ja | G99: Nee | H99: 12835 | I99: 2.397980693 | J99: 0 | K99: 0 | L99: 0 | M99: 1 | N99: 0 | P99: 15336 | R99: 90395 | S99: 73274
A100: Fryslân: Leeuwarden | B100: 182484 | C100: 226667 | D100: 65977 | E100: Nee | F100: Ja | G100: Nee | H100: 41725 | I100: 4.33214869 | J100: 0 | K100: 0 | L100: 0 | M100: 1 | N100: 0 | P100: 15171 | R100: 90000 | S100: 70573
A101: Fryslân: Lemmer | B101: 19922 | C101: 38080 | D101: 4844 | E101: Nee | F101: Ja | G101: Nee | H101: 3551 | I101: 3.737322691 | J101: 0 | K101: 0 | L101: 0 | M101: 1 | N101: 0 | P101: 15146 | R101: 90000 | S101: 70119
A102: Fryslân: Oosterwolde | B102: 43795 | C102: 40800 | D102: 12967 | E102: Nee | F102: Nee | G102: Nee | H102: 10115 | I102: 3.512212298 | J102: 1 | K102: 1 | L102: 0 | M102: 0 | N102: 0 | P102: 15056 | R102: 90000 | S102: 69925
A103: Fryslân: Schiermonnikoog | B103: 4414 | C103: 9067 | D103: 1146 | E103: Nee | F103: Ja | G103: Nee | H103: 695 | I103: 4.517591406 | J103: 0 | K103: 0 | L103: 0 | M103: 1 | N103: 0 | P103: 14875 | R103: 89760 | S103: 67425
A104: Fryslân: Sloten | B104: 16237 | C104: 19947 | D104: 7940 | E104: Nee | F104: Ja | G104: Nee | H104: 3047 | I104: 7.139292635 | J104: 0 | K104: 0 | L104: 0 | M104: 1 | N104: 0 | P104: 14763 | R104: 87310 | S104: 67303
A105: Fryslân: Sneek | B105: 52877 | C105: 66187 | D105: 23417 | E105: Nee | F105: Nee | G105: Nee | H105: 11689 | I105: 5.488593069 | J105: 0 | K105: 0 | L105: 0 | M105: 0 | N105: 0 | P105: 14704 | R105: 87267 | S105: 67134
A106: Fryslân: St.Annaparochie | B106: 12941 | C106: 16320 | D106: 8251 | E106: Nee | F106: Ja | G106: Nee | H106: 4028 | I106: 5.612085266 | J106: 0 | K106: 0 | L106: 0 | M106: 1 | N106: 0 | P106: 14591 | R106: 86400 | S106: 66470
A107: Fryslân: Terschelling | B107: 14007 | C107: 27200 | D107: 6143 | E107: Nee | F107: Nee | G107: Nee | H107: 1933 | I107: 8.706744432 | J107: 0 | K107: 0 | L107: 0 | M107: 0 | N107: 0 | P107: 14425 | R107: 84859 | S107: 66266
A108: Fryslân: Vlieland | B108: 3368 | C108: 9973 | D108: 734 | E108: Nee | F108: Ja | G108: Nee | H108: 580 | I108: 3.467170524 | J108: 0 | K108: 0 | L108: 0 | M108: 1 | N108: 0 | P108: 14316 | R108: 83413 | S108: 66257
A109: Fryslân: Warns | B109: 8581 | C109: 14507 | D109: 2852 | E109: Nee | F109: Ja | G109: Nee | H109: 1689 | I109: 4.626227727 | J109: 0 | K109: 0 | L109: 0 | M109: 1 | N109: 0 | P109: 13879 | R109: 82500 | S109: 65800
A110: Fryslân: Wijnjewoude | H110: 3303 | I110: 0 | J110: 0 | L110: 0 | M110: 0 | N110: 0 | P110: 13584 | R110: 81600 | S110: 64560
A111: Fryslân: Wolvega | B111: 36087 | C111: 62560 | D111: 15248 | E111: Nee | F111: Ja | G111: Nee | H111: 6047 | I111: 6.908440957 | J111: 0 | K111: 0 | L111: 0 | M111: 1 | N111: 0 | P111: 13502 | R111: 81500 | S111: 64410
A112: Fryslân: Workum | B112: 15604 | C112: 18133 | D112: 5451 | E112: Nee | F112: Ja | G112: Nee | H112: 4796 | I112: 3.113896283 | J112: 0 | K112: 0 | L112: 0 | M112: 1 | N112: 0 | P112: 13242 | R112: 78900 | S112: 64391
A113: Hollands Noorderkwartier: Alkmaar | B113: 70573 | C113: 67400 | D113: 54734 | E113: Nee | F113: Nee | G113: Nee | H113: 15887 | I113: 9.438922665 | J113: 1 | K113: 1 | L113: 0 | M113: 0 | N113: 0 | P113: 13186 | R113: 77970 | S113: 63948
A114: Hollands Noorderkwartier: Beemster | B114: 122028 | C114: 144900 | D114: 61771 | E114: Ja | F114: Ja | G114: Nee | H114: 24047 | I114: 7.037701852 | J114: 0 | K114: 0 | L114: 1 | M114: 1 | N114: 0 | P114: 13177 | R114: 76000 | S114: 63533
A115: Hollands Noorderkwartier: Beverwijk | B115: 209391 | C115: 318288 | D115: 161516 | E115: Ja | F115: Ja | G115: Nee | H115: 49790 | I115: 8.887519362 | J115: 0 | K115: 0 | L115: 1 | M115: 1 | N115: 0 | P115: 13041 | R115: 75960 | S115: 62598
A116: Hollands Noorderkwartier: Den Helder | B116: 53531 | C116: 110341 | D116: 35844 | E116: Ja | F116: Ja | G116: Nee | H116: 22861 | I116: 4.295644973 | J116: 0 | K116: 0 | L116: 1 | M116: 1 | N116: 0 | P116: 12960 | R116: 75844 | S116: 61516
A117: Hollands Noorderkwartier: Everstekoog | B117: 33296 | C117: 44900 | D117: 10364 | E117: Ja | F117: Nee | G117: Nee | H117: 5624 | I117: 5.048812331 | J117: 0 | K117: 0 | L117: 1 | M117: 0 | N117: 0 | P117: 12944 | R117: 74709 | S117: 60662
A118: Hollands Noorderkwartier: Geestmerambacht | B118: 234699 | C118: 238453 | D118: 124242 | E118: Nee | F118: Ja | G118: Nee | H118: 45700 | I118: 7.44833788 | J118: 0 | K118: 1 | L118: 0 | M118: 1 | N118: 0 | P118: 12927 | R118: 74528 | S118: 60515
A119: Hollands Noorderkwartier: Heiloo | B119: 45441 | C119: 95200 | D119: 27111 | E119: Ja | F119: Ja | G119: Nee | H119: 10698 | I119: 6.943046581 | J119: 0 | K119: 0 | L119: 1 | M119: 1 | N119: 0 | P119: 12835 | R119: 74350 | S119: 60449
A120: Hollands Noorderkwartier: Katwoude | B120: 79377 | C120: 87310 | D120: 47207 | E120: Nee | F120: Ja | G120: Nee | H120: 12927 | I120: 10.00496995 | J120: 0 | K120: 1 | L120: 0 | M120: 1 | N120: 0 | P120: 12804 | R120: 73920 | S120: 60126
A121: Hollands Noorderkwartier: Oosthuizen | B121: 8777 | C121: 9230 | D121: 3540 | E121: Nee | F121: Ja | G121: Nee | H121: 1235 | I121: 7.853141811 | J121: 0 | K121: 1 | L121: 0 | M121: 1 | N121: 0 | P121: 12485 | R121: 73685 | S121: 59677
A122: Hollands Noorderkwartier: Stolpen | B122: 47083 | C122: 57000 | D122: 40624 | E122: Nee | F122: Ja | G122: Nee | H122: 10341 | I122: 10.76284983 | J122: 0 | K122: 0 | L122: 0 | M122: 1 | N122: 0 | P122: 12423 | R122: 73500 | S122: 59646
A123: Hollands Noorderkwartier: Ursem | B123: 44044 | C123: 56304 | D123: 24948 | E123: Ja | F123: Nee | G123: Nee | H123: 9660 | I123: 7.075640262 | J123: 0 | K123: 0 | L123: 1 | M123: 0 | N123: 0 | P123: 12357 | R123: 73405 | S123: 59477
A124: Hollands Noorderkwartier: Wervershoof | B124: 280736 | C124: 277400 | D124: 85093 | E124: Ja | F124: Ja | G124: Nee | H124: 49650 | I124: 4.695498627 | J124: 1 | K124: 1 | L124: 1 | M124: 1 | N124: 0 | P124: 12153 | R124: 72533 | S124: 59239
A125: Hollands Noorderkwartier: Wieringen | B125: 9342 | C125: 15286 | D125: 8575 | E125: Nee | F125: Ja | G125: Nee | H125: 2498 | I125: 9.404784101 | J125: 0 | K125: 0 | L125: 0 | M125: 1 | N125: 0 | P125: 12134 | R125: 72000 | S125: 59056
A126: Hollands Noorderkwartier: Wieringermeer | B126: 11618 | C126: 16400 | D126: 10860 | E126: Nee | F126: Ja | G126: Nee | H126: 2859 | I126: 10.40693412 | J126: 0 | K126: 0 | L126: 0 | M126: 1 | N126: 0 | P126: 12085 | R126: 71200 | S126: 58592
A127: Hollands Noorderkwartier: Zaandam Oost | B127: 127395 | C127: 137451 | D127: 82920 | E127: Ja | F127: Ja | G127: Nee | H127: 19197 | I127: 11.83404085 | J127: 0 | K127: 1 | L127: 1 | M127: 1 | N127: 0 | P127: 11968 | R127: 70000 | S127: 58229
A128: Hollandse Delta: Barendrecht | B128: 45318 | C128: 51000 | D128: 21170 | E128: Nee | F128: Ja | G128: Nee | H128: 10571 | I128: 5.486708921 | J128: 0 | K128: 0 | L128: 0 | M128: 1 | N128: 0 | P128: 11889 | R128: 69904 | S128: 57699
A129: Hollandse Delta: Den Bommel | B129: 2863 | C129: 3673 | D129: 2190 | E129: Nee | F129: Ja | G129: Nee | H129: 1040 | I129: 5.769230769 | J129: 0 | K129: 0 | L129: 0 | M129: 1 | N129: 0 | P129: 11756 | R129: 69800 | S129: 56993
A130: Hollandse Delta: Dokhaven | B130: 475209 | C130: 564000 | D130: 768325 | E130: Nee | F130: Nee | G130: Nee | H130: 119407 | I130: 17.62878223 | J130: 0 | K130: 0 | L130: 0 | M130: 0 | N130: 0 | P130: 11712 | R130: 68100 | S130: 56706
A131: Hollandse Delta: Dordrecht | B131: 267726 | C131: 281112 | D131: 133225 | E131: Nee | F131: Ja | G131: Nee | H131: 51924 | I131: 7.029504661 | J131: 0 | K131: 1 | L131: 0 | M131: 1 | N131: 0 | P131: 11689 | R131: 67400 | S131: 56437
A132: Hollandse Delta: Goedereede | B132: 29807 | C132: 42000 | D132: 4380 | E132: Nee | F132: Ja | G132: Nee | H132: 6066 | I132: =+D132/(H132*365)*1000 -> 1.978239367 | J132: =+IFERROR(IF(B132>C132,1,0),"") -> 0 | K132: =+IFERROR(IF(B132/C132>0.9,1,0),"") -> 0 | L132: =+IF(E132="Ja",1,0) -> 0 | M132: 1 | N132: 0 | P132: 11648 | R132: 67093 | S132: 55348
A133: Hollandse Delta: Heenvliet | B133: 7438 | C133: 8051 | D133: 4015 | E133: Nee | F133: Ja | G133: Nee | H133: 2508 | I133: 4.385964912 | J133: 0 | K133: 1 | L133: 0 | M133: 1 | N133: 0 | P133: 11554 | R133: 66650 | S133: 54632
A134: Hollandse Delta: Hellevoetsluis | B134: 79967 | C134: 108000 | D134: 37595 | E134: Nee | F134: Ja | G134: Nee | H134: 23728 | I134: 4.340863115 | J134: 0 | K134: 0 | L134: 0 | M134: 1 | N134: 0 | P134: 11442 | R134: 66187 | S134: 54418
A135: Hollandse Delta: Hoogvliet | B135: 90730 | C135: 90000 | D135: 99645 | E135: Nee | F135: Ja | G135: Nee | H135: 23285 | I135: 11.72428602 | J135: 1 | K135: 1 | L135: 0 | M135: 1 | N135: 0 | P135: 11420 | R135: 66187 | S135: 53980
A136: Hollandse Delta: Middelharnis | B136: 34135 | C136: 48000 | D136: 6570 | E136: Nee | F136: Ja | G136: Nee | H136: 8636 | I136: 2.084298286 | J136: 0 | K136: 0 | L136: 0 | M136: 1 | N136: 0 | P136: 11203 | R136: 66000 | S136: 53531
A137: Hollandse Delta: Numansdorp | B137: 17369 | C137: 26000 | D137: 7300 | E137: Nee | F137: Ja | G137: Nee | H137: 5833 | I137: 3.428767358 | J137: 0 | K137: 0 | L137: 0 | M137: 1 | N137: 0 | P137: 11074 | R137: 66000 | S137: 52877
A138: Hollandse Delta: Ooltgensplaat | B138: 2660 | C138: 3083 | D138: 1825 | E138: Nee | F138: Ja | G138: Nee | H138: 1123 | I138: 4.452359751 | J138: 0 | K138: 0 | L138: 0 | M138: 1 | N138: 0 | P138: 10971 | R138: 65460 | S138: 52338
A139: Hollandse Delta: Oostvoorne | B139: 31300 | C139: 45000 | D139: 10950 | E139: Nee | F139: Ja | G139: Nee | H139: 6826 | I139: 4.394960445 | J139: 0 | K139: 0 | L139: 0 | M139: 1 | N139: 0 | P139: 10832 | R139: 65280 | S139: 51103
A140: Hollandse Delta: Oud Beijerland | B140: 45245 | C140: 60000 | D140: 9490 | E140: Nee | F140: Ja | G140: Nee | H140: 13242 | I140: 1.96344963 | J140: 0 | K140: 0 | L140: 0 | M140: 1 | N140: 0 | P140: 10767 | R140: 65000 | S140: 50783
A141: Hollandse Delta: Oude Tonge | B141: 11879 | C141: 15600 | D141: 8395 | E141: Nee | F141: Ja | G141: Nee | H141: 3356 | I141: 6.853396901 | J141: 0 | K141: 0 | L141: 0 | M141: 1 | N141: 0 | P141: 10698 | R141: 64942 | S141: 50574
A142: Hollandse Delta: Piershil | B142: 5939 | C142: 6600 | D142: 4015 | E142: Nee | F142: Ja | G142: Nee | H142: 1740 | I142: 6.32183908 | J142: 0 | K142: 0 | L142: 0 | M142: 1 | N142: 0 | P142: 10571 | R142: 64373 | S142: 50515
A143: Hollandse Delta: Ridderkerk | B143: 73274 | C143: 87267 | D143: 31025 | E143: Nee | F143: Ja | G143: Nee | H143: 20567 | I143: 4.132834152 | J143: 0 | K143: 0 | L143: 0 | M143: 1 | N143: 0 | P143: 10475 | R143: 64000 | S143: 50149
A144: Hollandse Delta: Rozenburg | B144: 15503 | C144: 21600 | D144: 11680 | E144: Nee | F144: Ja | G144: Nee | H144: 5254 | I144: 6.09059764 | J144: 0 | K144: 0 | L144: 0 | M144: 1 | N144: 0 | P144: 10388 | R144: 64000 | S144: 49561
A145: Hollandse Delta: Spijkenisse | B145: 125337 | C145: 102000 | D145: 23360 | E145: Nee | F145: Ja | G145: Nee | H145: 23566 | I145: 2.715776967 | J145: 1 | K145: 1 | L145: 0 | M145: 1 | N145: 0 | P145: 10376 | R145: 63500 | S145: 48930
A146: Hollandse Delta: Strijen | B146: 11394 | C146: 17000 | D146: 1460 | E146: Nee | F146: Ja | G146: Nee | H146: 3363 | I146: 1.189414213 | J146: 0 | K146: 0 | L146: 0 | M146: 1 | N146: 0 | P146: 10341 | R146: 63500 | S146: 48889
A147: Hollandse Delta: Zwijndrecht | B147: 153093 | C147: 227999 | D147: 45990 | E147: Nee | F147: Ja | G147: Nee | H147: 41582 | I147: 3.03015728 | J147: 0 | K147: 0 | L147: 0 | M147: 1 | N147: 0 | P147: 10115 | R147: 62560 | S147: 48396
A148: Hunze en Aa's: Assen | B148: 99207 | C148: 121408 | D148: 55048 | E148: Nee | F148: Ja | G148: Nee | H148: 21168 | I148: 7.124737262 | J148: 0 | K148: 0 | L148: 0 | M148: 1 | N148: 0 | P148: 10065 | R148: 62560 | S148: 48158
A149: Hunze en Aa's: Bellingwolde | B149: 5348 | C149: 10514 | D149: 2052 | E149: Ja | F149: Ja | G149: Nee | H149: 1503 | I149: 3.740464277 | J149: 0 | K149: 0 | L149: 1 | M149: 1 | N149: 0 | P149: 10056 | R149: 61538 | S149: 47917
A150: Hunze en Aa's: Foxhol | B150: 40372 | C150: 64942 | D150: 15410 | E150: Ja | F150: Ja | G150: Nee | H150: 9731 | I150: 4.338626871 | J150: 0 | K150: 0 | L150: 1 | M150: 1 | N150: 0 | P150: 9959 | R150: 61200 | S150: 47767
A151: Hunze en Aa's: Gieten | B151: 45538 | C151: 50338 | D151: 23864 | E151: Nee | F151: Ja | G151: Nee | H151: 9157 | I151: 7.139982736 | J151: 0 | K151: 1 | L151: 0 | M151: 1 | N151: 0 | P151: 9731 | R151: 60000 | S151: 47231
A152: Hunze en Aa's: Hoogezand | B152: 33823 | C152: 59509 | D152: 7518 | E152: Ja | F152: Nee | G152: Nee | H152: 8599 | I152: 2.395308789 | J152: 0 | K152: 0 | L152: 1 | M152: 0 | N152: 0 | P152: 9693 | R152: 60000 | S152: 47083
A153: Hunze en Aa's: Oude Pekela | B153: 13257 | C153: 24734 | D153: 4203 | E153: Ja | F153: Ja | G153: Nee | H153: 3763 | I153: 3.060076666 | J153: 0 | K153: 0 | L153: 1 | M153: 1 | N153: 0 | P153: 9692 | R153: 60000 | S153: 47079
A154: Hunze en Aa's: Scheemda | B154: 58592 | C154: 75844 | D154: 29763 | E154: Ja | F154: Ja | G154: Nee | H154: 16811 | I154: 4.850542249 | J154: 0 | K154: 0 | L154: 1 | M154: 1 | N154: 0 | P154: 9660 | R154: 59509 | S154: 46881
A155: Hunze en Aa's: Scheve Klap | B155: 5575 | C155: 10842 | D155: 2563 | E155: Nee | F155: Ja | G155: Nee | H155: 1871 | I155: 3.753029294 | J155: 0 | K155: 0 | L155: 0 | M155: 1 | N155: 0 | P155: 9613 | R155: 58500 | S155: 46617
A156: Hunze en Aa's: Stadskanaal | B156: 42380 | C156: 56257 | D156: 19285 | E156: Ja | F156: Ja | G156: Nee | H156: 9693 | I156: 5.450904409 | J156: 0 | K156: 0 | L156: 1 | M156: 1 | N156: 0 | P156: 9571 | R156: 57845 | S156: 46112
A157: Hunze en Aa's: Ter Apel | B157: 17870 | C157: 29172 | D157: 6363 | E157: Ja | F157: Ja | G157: Nee | H157: 3786 | I157: 4.604563315 | J157: 0 | K157: 0 | L157: 1 | M157: 1 | N157: 0 | P157: 9532 | R157: 57346 | S157: 45996
A158: Hunze en Aa's: Tweede Exloermond | B158: 8990 | C158: 13421 | D158: 3887 | E158: Ja | F158: Ja | G158: Nee | H158: 2192 | I158: 4.858264174 | J158: 0 | K158: 0 | L158: 1 | M158: 1 | N158: 0 | P158: 9474 | R158: 57300 | S158: 45538
A159: Hunze en Aa's: Veendam | B159: 63948 | C159: 84859 | D159: 29501 | E159: Nee | F159: Ja | G159: Nee | H159: 16212 | I159: 4.98548344 | J159: 0 | K159: 0 | L159: 0 | M159: 1 | N159: 0 | P159: 9335 | R159: 57000 | S159: 45441
A160: Hunze en Aa's: Vriescheloo | B160: 8079 | C160: 17392 | D160: 2876 | E160: Ja | F160: Ja | G160: Nee | H160: 1832 | I160: 4.301010947 | J160: 0 | K160: 0 | L160: 1 | M160: 1 | N160: 0 | P160: 9323 | R160: 56304 | S160: 45318
A161: Noorderzijlvest: Delfzijl | B161: 42694 | C161: 73405 | D161: 15823 | E161: Nee | F161: Ja | G161: Nee | H161: 14316 | I161: 3.028128313 | J161: 0 | K161: 0 | L161: 0 | M161: 1 | N161: 0 | P161: 9157 | R161: 56257 | S161: 45245
A162: Noorderzijlvest: Eelde | B162: 69925 | C162: 101248 | D162: 32184 | E162: Nee | F162: Ja | G162: Nee | H162: 19945 | I162: 4.420924666 | J162: 0 | K162: 0 | L162: 0 | M162: 1 | N162: 0 | P162: 9150 | R162: 56213 | S162: 44494
A163: Noorderzijlvest: Feerwerd | B163: 3174 | C163: 4819 | D163: 2105 | E163: Nee | F163: Ja | G163: Nee | H163: 1290 | I163: 4.470638207 | J163: 0 | K163: 0 | L163: 0 | M163: 1 | N163: 0 | P163: 9112 | R163: 55000 | S163: 44044
A164: Noorderzijlvest: Gaarkeuken | B164: 15901 | C164: 16266 | D164: 9619 | E164: Nee | F164: Ja | G164: Nee | H164: 4987 | I164: 5.284424435 | J164: 0 | K164: 1 | L164: 0 | M164: 1 | N164: 0 | P164: 9092 | R164: 54400 | S164: 44023
A165: Noorderzijlvest: Garmerwolde | B165: 329588 | C165: 340146 | D165: 244482 | E165: Nee | F165: Nee | G165: Nee | H165: 82229 | I165: 8.14571135 | J165: 0 | K165: 1 | L165: 0 | M165: 0 | N165: 0 | P165: 9000 | R165: 54400 | S165: 44007
A166: Noorderzijlvest: Hoogkerk | H166: 2995 | I166: 0 | J166: 0 | L166: 0 | M166: 0 | N166: 0 | P166: 8946 | R166: 54000 | S166: 43795
A167: Noorderzijlvest: Leek | B167: 34271 | C167: 39668 | D167: 10159 | E167: Nee | F167: Nee | G167: Ja | H167: 6569 | I167: 4.23700361 | J167: 0 | K167: 0 | L167: 0 | M167: 0 | N167: 1 | P167: 8888 | R167: 54000 | S167: 42694
A168: Noorderzijlvest: Marum | B168: 11035 | C168: 8433 | D168: 6397 | E168: Nee | F168: Ja | G168: Nee | H168: 2487 | I168: 7.047055648 | J168: 1 | K168: 1 | L168: 0 | M168: 1 | N168: 0 | P168: 8749 | R168: 54000 | S168: 42380
A169: Noorderzijlvest: Onderdendam | B169: 13932 | C169: 20720 | D169: 9467 | E169: Nee | F169: Ja | G169: Nee | H169: 4818 | I169: 5.383351246 | J169: 0 | K169: 0 | L169: 0 | M169: 1 | N169: 0 | P169: 8636 | R169: 53500 | S169: 42343
A170: Noorderzijlvest: Uithuizen | H170: 0 | J170: 0 | L170: 0 | M170: 0 | N170: 0 | P170: 8606 | R170: 51000 | S170: 42197
A171: Noorderzijlvest: Uithuizermeeden | B171: 13751 | C171: 14171 | D171: 6046 | E171: Nee | F171: Ja | G171: Ja | H171: 4059 | I171: 4.080902577 | J171: 0 | K171: 1 | L171: 0 | M171: 1 | N171: 1 | P171: 8599 | R171: 50338 | S171: 40372
A172: Noorderzijlvest: Ulrum | B172: 8938 | C172: 18444 | D172: 3596 | E172: Nee | F172: Ja | G172: Nee | H172: 2109 | I172: 4.671434232 | J172: 0 | K172: 0 | L172: 0 | M172: 1 | N172: 0 | P172: 8596 | R172: 50200 | S172: 40144
A173: Noorderzijlvest: Wehe den Hoorn | B173: 5484 | C173: 8435 | D173: 4108 | E173: Nee | F173: Ja | G173: Nee | H173: 1736 | I173: 6.483176567 | J173: 0 | K173: 0 | L173: 0 | M173: 1 | N173: 0 | P173: 8400 | R173: 50000 | S173: 39276
A174: Noorderzijlvest: Winsum | B174: 17265 | C174: 21078 | D174: 12957 | E174: Nee | F174: Ja | G174: Nee | H174: 4781 | I174: 7.424938326 | J174: 0 | K174: 0 | L174: 0 | M174: 1 | N174: 0 | P174: 8352 | R174: 48000 | S174: 39148
A175: Noorderzijlvest: Zuidhorn 1 | B175: 9255 | C175: 9646 | D175: 4748 | E175: Nee | F175: Ja | G175: Nee | H175: 2059 | I175: 6.317736366 | J175: 0 | K175: 1 | L175: 0 | M175: 1 | N175: 0 | P175: 8276 | R175: 48000 | S175: 38497
A176: Noorderzijlvest: Zuidhorn 2 | B176: 6565 | C176: 7838 | D176: 3511 | E176: Nee | F176: Ja | G176: Nee | H176: 1879 | I176: 5.119307122 | J176: 0 | K176: 0 | L176: 0 | M176: 1 | N176: 0 | P176: 8274 | R176: 48000 | S176: 38351
A177: Rijn en IJssel: Aalten | B177: 26576 | C177: 29920 | D177: 8545 | E177: Nee | F177: Ja | G177: Nee | H177: 4680 | I177: 5.002341646 | J177: 0 | K177: 0 | L177: 0 | M177: 1 | N177: 0 | P177: 8197 | R177: 48000 | S177: 37878
A178: Rijn en IJssel: Dinxperlo | B178: 12997 | C178: 16773 | D178: 5192 | E178: Nee | F178: Nee | G178: Nee | H178: 2736 | I178: 5.199070736 | J178: 0 | K178: 0 | L178: 0 | M178: 0 | N178: 0 | P178: 8122 | R178: 48000 | S178: 37651
A179: Rijn en IJssel: Etten | B179: 178340 | C179: 206720 | D179: 69001 | E179: Nee | F179: Ja | G179: Nee | H179: 28861 | I179: 6.550148492 | J179: 0 | K179: 0 | L179: 0 | M179: 1 | N179: 0 | P179: 8053 | R179: 47500 | S179: 37605
A180: Rijn en IJssel: Haarlo | B180: 79332 | C180: 29467 | D180: 15215 | E180: Nee | F180: Ja | G180: Nee | H180: - | J180: 1 | K180: 1 | L180: 0 | M180: 1 | N180: 0 | P180: 7997 | R180: 46800 | S180: 37530
A181: Rijn en IJssel: Holten | B181: 35379 | C181: 37173 | D181: 14850 | E181: Nee | F181: Ja | G181: Nee | H181: 4945 | I181: 8.227488677 | J181: 0 | K181: 1 | L181: 0 | M181: 1 | N181: 0 | P181: 7896 | R181: 45333 | S181: 36727
A182: Rijn en IJssel: Lichtenvoorde | B182: 33778 | C182: 65280 | D182: 9236 | E182: Nee | F182: Ja | G182: Nee | H182: 5090 | I182: 4.971337837 | J182: 0 | K182: 0 | L182: 0 | M182: 1 | N182: 0 | P182: 7792 | R182: 45000 | S182: 36458
A183: Rijn en IJssel: Nieuwgraaf | B183: 255100 | C183: 395000 | D183: 133149 | E183: Nee | F183: Ja | G183: Nee | H183: 57530 | I183: 6.34089659 | J183: 0 | K183: 0 | L183: 0 | M183: 1 | N183: 0 | P183: 7786 | R183: 44900 | S183: 36093
A184: Rijn en IJssel: Olburgen | B184: 113894 | C184: 137510 | D184: 65925 | E184: Nee | F184: Ja | G184: Nee | H184: 21647 | I184: 8.343716836 | J184: 0 | K184: 0 | L184: 0 | M184: 1 | N184: 0 | P184: 7737 | R184: 44427 | S184: 36087
A185: Rijn en IJssel: Ruurlo | B185: 12274 | C185: 12875 | D185: 3836 | E185: Nee | F185: Ja | G185: Nee | H185: 2130 | I185: 4.934079362 | J185: 0 | K185: 1 | L185: 0 | M185: 1 | N185: 0 | P185: 7508 | R185: 44426 | S185: 35939
A186: Rijn en IJssel: Varsseveld | B186: 20076 | C186: 28560 | D186: 10221 | E186: Nee | F186: Ja | G186: Nee | H186: 4698 | I186: 5.96056614 | J186: 0 | K186: 0 | L186: 0 | M186: 1 | N186: 0 | P186: 7432 | R186: 44400 | S186: 35507
A187: Rijn en IJssel: Wehl | B187: 9479 | C187: 10880 | D187: 3747 | E187: Nee | F187: Ja | G187: Nee | H187: 1602 | I187: 6.408085783 | J187: 0 | K187: 0 | L187: 0 | M187: 1 | N187: 0 | P187: 7387 | R187: 44400 | S187: 35379
A188: Rijn en IJssel: Winterswijk | B188: 87237 | C188: 83413 | D188: 31269 | E188: Nee | F188: Ja | G188: Nee | H188: 13584 | I188: 6.306573406 | J188: 1 | K188: 1 | L188: 0 | M188: 1 | N188: 0 | P188: 7317 | R188: 44000 | S188: 35094
A189: Rijn en IJssel: Zutphen | B189: 249240 | C189: 181000 | D189: 21954 | E189: Nee | F189: Ja | G189: Nee | H189: 34462 | I189: 1.745341106 | J189: 1 | K189: 1 | L189: 0 | M189: 1 | N189: 0 | P189: 7189 | R189: 43200 | S189: 34512
A190: Rijnland: Aalsmeer | B190: 38497 | C190: - | D190: 12403 | E190: Nee | F190: Ja | G190: Ja | H190: 7737 | I190: 4.391989391 | J190: 0 | L190: 0 | M190: 1 | N190: 1 | P190: 7082 | R190: 42000 | S190: 34271
A191: Rijnland: Alphen Kerk en Zanen | B191: 64391 | C191: 95000 | D191: 14791 | E191: Nee | F191: Ja | G191: Nee | H191: 12357 | I191: 3.279379111 | J191: 0 | K191: 0 | L191: 0 | M191: 1 | N191: 0 | P191: 7061 | R191: 42000 | S191: 34135
A192: Rijnland: Alphen Noord | B192: 61516 | C192: 69800 | D192: 10702 | E192: Nee | F192: Ja | G192: Nee | H192: 8749 | I192: 3.351302771 | J192: 0 | K192: 0 | L192: 0 | M192: 1 | N192: 0 | P192: 6826 | R192: 41707 | S192: 34030
A193: Rijnland: Bodegraven | B193: 60449 | C193: 76000 | D193: 10936 | E193: Nee | F193: Ja | G193: Ja | H193: 12153 | I193: 2.465370183 | J193: 0 | K193: 0 | L193: 0 | M193: 1 | N193: 1 | P193: 6597 | R193: 41000 | S193: 33892
A194: Rijnland: Gouda | B194: 102464 | C194: 127000 | D194: 39782 | E194: Nee | F194: Ja | G194: Nee | H194: 20911 | I194: 5.212174493 | J194: 0 | K194: 0 | L194: 0 | M194: 1 | N194: 0 | P194: 6569 | R194: 41000 | S194: 33823
A195: Rijnland: Haarlem Schalkwijk | B195: 66266 | C195: 102000 | D195: 21906 | E195: Nee | F195: Ja | G195: Nee | H195: 15733 | I195: 3.814684952 | J195: 0 | K195: 0 | L195: 0 | M195: 1 | N195: 0 | P195: 6388 | R195: 40800 | S195: 33778
A196: Rijnland: Haarlem Waarderpolder | B196: 241704 | C196: 227000 | D196: 102562 | E196: Nee | F196: Ja | G196: Nee | H196: 50774 | I196: =+D196/(H196*365)*1000 -> 5.534166716 | J196: =+IFERROR(IF(B196>C196,1,0),"") -> 1 | K196: =+IFERROR(IF(B196/C196>0.9,1,0),"") -> 1 | L196: =+IF(E196="Ja",1,0) -> 0 | M196: 1 | N196: 0 | P196: 6385 | R196: 40800 | S196: 33296
A197: Rijnland: Heemstede | B197: 32847 | C197: 44400 | D197: 33273 | E197: Nee | F197: Nee | G197: Nee | H197: 6149 | I197: 14.8249966 | J197: 0 | K197: 0 | L197: 0 | M197: 0 | N197: 0 | P197: 6279 | R197: 40709 | S197: 32884
A198: Rijnland: Hoogmade | B198: - | C198: - | D198: - | E198: Nee | F198: Ja | G198: Nee | H198: 635 | J198: 0 | L198: 0 | M198: 1 | N198: 0 | P198: 6269 | R198: 39668 | S198: 32879
A199: Rijnland: Katwijk | B199: 191920 | C199: 203100 | D199: 109268 | E199: Ja | F199: Ja | G199: Nee | H199: 35204 | I199: 8.503703658 | J199: 0 | K199: 1 | L199: 1 | M199: 1 | N199: 0 | P199: 6237 | R199: 38987 | S199: 32847
A200: Rijnland: Langeraar | H200: 694 | I200: 0 | J200: 0 | L200: 0 | M200: 0 | N200: 0 | P200: 6210 | R200: 38400 | S200: 32514
A201: Rijnland: Leiden Noord | B201: 108947 | C201: 140000 | D201: 42489 | E201: Nee | F201: Ja | G201: Nee | H201: 28388 | I201: 4.100613611 | J201: 0 | K201: 0 | L201: 0 | M201: 1 | N201: 0 | P201: 6149 | R201: 38170 | S201: 32305
... 140 more rows

Sheet Temperatuurverloop (hidden)
C3: Temperatuurverloop rioolwater
D4: Default | E4: Eigen reeks
C5: januari | D5: ='Invoergegevens warmtevraag'!D24 -> 9 | E5: ='Invoergegevens warmtevraag'!D24 -> 9
C6: februari | D6: 10 | E6: ='Invoergegevens warmtevraag'!D24 -> 9
C7: maart | D7: 11 | E7: 9
C8: april | D8: 13 | E8: 11
C9: mei | D9: 16 | E9: 14
C10: juni | D10: 18 | E10: 19
C11: juli | D11: 21 | E11: 20
C12: augustus | D12: 23 | E12: 22
C13: september | D13: 21 | E13: 22
C14: oktober | D14: 18 | E14: 14
C15: november | D15: 15 | E15: 10
C16: december | D16: 11 | E16: 9
C21: Debiet | D21: ='Invoergegevens warmtevraag'!D20/'Invoergegevens warmtevraag'!D21 -> 199.6875 | E21: m3/uur | H21: Invloed factor | J21: =IF('Invoergegevens waterzuivering'!D9<6,IF('Data invoer'!G45>1,0,1-'Data invoer'!G45),0) -> 0.10624
C23: Temperatuur rioolwater (graden Celcius) | D23: Temperatuurverloop na rioolwisselaar (graden Celcius) | E23: Delta T | F23: Gemiddeld vermogensvraag bron (kW) | G23: Warmtevraag per uur gemiddeld (GJ) | H23: Delta T bij aankomst rwzi | I23: Delta T influent | J23: Temperatuur deelstroom bij de rwzi | K23: Temperatuur influent
B24: januari | C24: =IF('Data invoer'!$D$57=1,Temperatuurverloop!D5,Temperatuurverloop!E5) -> 9 | D24: =C24-E24 -> 7.767763239 | E24: =(G24*1000)/($D$21*4.18) -> 1.232236761 | F24: ='Data invoer'!H17/'Data invoer'!I17 -> 428.5584677 | G24: ='Data invoer'!U6 -> 1.028540323 | H24: =E24*$J$21 -> 0.1309128334 | I24: ='Invoergegevens warmtevraag'!$D$20/'Invoergegevens waterzuivering'!$D$16*H24 -> 0.01829607204 | J24: =C24-H24 -> 8.869087167 | K24: =C24-I24 -> 8.981703928
B25: februari | C25: =IF('Data invoer'!$D$57=1,Temperatuurverloop!D6,Temperatuurverloop!E6) -> 9 | D25: 7.658698603 | E25: =(G25*1000)/($D$21*4.18) -> 1.341301397 | F25: ='Data invoer'!H18/'Data invoer'!I18 -> 466.4899554 | G25: ='Data invoer'!U7 -> 1.119575893 | H25: =E25*$J$21 -> 0.1424998604 | I25: ='Invoergegevens warmtevraag'!$D$20/'Invoergegevens waterzuivering'!$D$16*H25 -> 0.01991544788 | J25: =C25-H25 -> 8.85750014 | K25: =C25-I25 -> 8.980084552
B26: maart | C26: =IF('Data invoer'!$D$57=1,Temperatuurverloop!D7,Temperatuurverloop!E7) -> 9 | D26: 7.995889211 | E26: 1.004110789 | F26: ='Data invoer'!H19/'Data invoer'!I19 -> 349.21875 | G26: ='Data invoer'!U8 -> 0.838125 | H26: 0.1066767302 | I26: ='Invoergegevens warmtevraag'!$D$20/'Invoergegevens waterzuivering'!$D$16*H26 -> 0.01490889082 | J26: 8.89332327 | K26: 8.985091109
B27: april | C27: =IF('Data invoer'!$D$57=1,Temperatuurverloop!D8,Temperatuurverloop!E8) -> 11 | D27: 10.19100568 | E27: 0.8089943168 | F27: ='Data invoer'!H20/'Data invoer'!I20 -> 281.359375 | G27: ='Data invoer'!U9 -> 0.6752625 | H27: 0.08594755621 | I27: ='Invoergegevens warmtevraag'!$D$20/'Invoergegevens waterzuivering'!$D$16*H27 -> 0.01201182985 | J27: 10.91405244 | K27: 10.98798817
B28: mei | C28: =IF('Data invoer'!$D$57=1,Temperatuurverloop!D9,Temperatuurverloop!E9) -> 14 | D28: 13.50053151 | E28: 0.4994684887 | F28: ='Data invoer'!H21/'Data invoer'!I21 -> 173.7096774 | G28: ='Data invoer'!U10 -> 0.4169032258 | H28: 0.05306353224 | I28: ='Invoergegevens warmtevraag'!$D$20/'Invoergegevens waterzuivering'!$D$16*H28 -> 0.007416035409 | J28: 13.94693647 | K28: 13.99258396
B29: juni | C29: =IF('Data invoer'!$D$57=1,Temperatuurverloop!D10,Temperatuurverloop!E10) -> 19 | D29: 18.6767527 | E29: 0.3232472988 | F29: ='Data invoer'!H22/'Data invoer'!I22 -> 112.421875 | G29: ='Data invoer'!U11 -> 0.2698125 | H29: 0.03434179302 | I29: ='Invoergegevens warmtevraag'!$D$20/'Invoergegevens waterzuivering'!$D$16*H29 -> 0.004799528835 | J29: 18.96565821 | K29: 18.99520047
B30: juli | C30: =IF('Data invoer'!$D$57=1,Temperatuurverloop!D11,Temperatuurverloop!E11) -> 20 | D30: 19.85308983 | E30: 0.1469101691 | F30: ='Data invoer'!H23/'Data invoer'!I23 -> 51.09375 | G30: ='Data invoer'!U12 -> 0.122625 | H30: 0.01560773637 | I30: ='Invoergegevens warmtevraag'!$D$20/'Invoergegevens waterzuivering'!$D$16*H30 -> 0.002181300805 | J30: 19.98439226 | K30: 19.9978187
B31: augustus | C31: =IF('Data invoer'!$D$57=1,Temperatuurverloop!D12,Temperatuurverloop!E12) -> 22 | D31: 21.8254382 | E31: 0.1745618021 | F31: ='Data invoer'!H24/'Data invoer'!I24 -> 60.71068548 | G31: ='Data invoer'!U13 -> 0.1457056452 | H31: 0.01854544585 | I31: ='Invoergegevens warmtevraag'!$D$20/'Invoergegevens waterzuivering'!$D$16*H31 -> 0.002591868225 | J31: 21.98145455 | K31: 21.99740813
B32: september | C32: =IF('Data invoer'!$D$57=1,Temperatuurverloop!D13,Temperatuurverloop!E13) -> 22 | D32: 21.59103264 | E32: 0.4089673608 | F32: ='Data invoer'!H25/'Data invoer'!I25 -> 142.234375 | G32: ='Data invoer'!U14 -> 0.3413625 | H32: 0.04344869241 | I32: ='Invoergegevens warmtevraag'!$D$20/'Invoergegevens waterzuivering'!$D$16*H32 -> 0.006072287837 | J32: 21.95655131 | K32: 21.99392771
B33: oktober | C33: =IF('Data invoer'!$D$57=1,Temperatuurverloop!D14,Temperatuurverloop!E14) -> 14 | D33: 13.32770881 | E33: 0.6722911943 | F33: ='Data invoer'!H26/'Data invoer'!I26 -> 233.8155242 | G33: ='Data invoer'!U15 -> 0.5611572581 | H33: 0.07142421648 | I33: ='Invoergegevens warmtevraag'!$D$20/'Invoergegevens waterzuivering'!$D$16*H33 -> 0.009982081784 | J33: 13.92857578 | K33: 13.99001792
B34: november | C34: =IF('Data invoer'!$D$57=1,Temperatuurverloop!D15,Temperatuurverloop!E15) -> 10 | D34: 8.998135544 | E34: 1.001864456 | F34: ='Data invoer'!H27/'Data invoer'!I27 -> 348.4375 | G34: ='Data invoer'!U16 -> 0.83625 | H34: 0.1064380798 | I34: ='Invoergegevens warmtevraag'!$D$20/'Invoergegevens waterzuivering'!$D$16*H34 -> 0.0148755376 | J34: 9.89356192 | K34: 9.985124462
B35: december | C35: =IF('Data invoer'!$D$57=1,Temperatuurverloop!D16,Temperatuurverloop!E16) -> 9 | D35: 7.809240689 | E35: 1.190759311 | F35: ='Data invoer'!H28/'Data invoer'!I28 -> 414.1330645 | G35: ='Data invoer'!U17 -> 0.9939193548 | H35: 0.1265062692 | I35: ='Invoergegevens warmtevraag'!$D$20/'Invoergegevens waterzuivering'!$D$16*H35 -> 0.01768022091 | J35: 8.873493731 | K35: 8.982319779
D45: Stijging Ntot (mg/l) bij 1 C | F45: Wekelijke daling bij temperatuurreeks
B46: Omloopcircuit | C46: <85% | D46: 0.1001053237 | F46: =D46*$I$24 -> 0.001831534214
C47: 85%-100% | D47: 0.9433785379 | F47: =D47*$I$24 -> 0.01726012169
C48: >100% | D48: 1.073114254 | F48: 0.0196337757
B50: Gecompartimenteerd | C50: <85% | D50: 0.1 | F50: =D50*$I$24 -> 0.001829607204
C51: 85%-100% | D51: 1.009154903 | F51: =D51*$I$24 -> 0.01846357081
C52: >100% | D52: 1.819123985 | F52: 0.03328282348
